{"text_format":"1","workbook":"xlsx","n_sheets":1,"sheets":["BTT_Trials"],"not_rendered":{"charts":0,"images":17,"macros":1,"external_links":2,"defined_names":6,"comments":2,"pivot_tables":0},"unopened":[],"bounds":{"document_bytes":16777216,"sheet_cells":100000,"rows_first":2000,"rows_last":500,"rows_between":2000,"halvings":0,"cell_chars":16384,"cell_head_chars":4096},"cells_cut":0,"cells_raw":0,"read":"whole","date_system":"1900"}

{"sheet":"BTT_Trials","index":0,"n_rows":378,"n_cols":54,"rows_kept":378,"cut":false,"hidden":false,"merged":[[0,4,0,5],[2,1,2,2]]}
["Bucher Twisting Tests",null,{"$f":"YEAR(TODAY())","v":2025},null,"black requires an input/red will be calculated"]
[]
["BTT-Trial No. 1",null,null,null,"BTT-Trial No. 2",null,null,null,"BTT-Trial No. 3",null,null,null,"BTT-Trial No. 4",null,null,null,"BTT-Trial No. 5"]
[null,null,null,null,null,null,null,null,null,null,null,null,null,null,null,null,null,null,null,null,null,null,null,null,null,null,null,null,null,null,null,null,null,null,null,null,null,null,null,null,null,"KR 44-1602 A  / Black filter",null,"Personen"]
["Date of taken sample:",null,"Used filter type",null,"Date of taken sample:",null,"Used filter type",null,"Date of taken sample:",null,"Used filter type",null,"Date of taken sample:",null,"Used filter type",null,"Date of taken sample:",null,"Used filter type",null,null,null,null,"Drehzahl","Drehzykluszeit",null,null,null,null,null,null,null,null,null,null,null,null,null,null,null,null,"KR 44-2001 A 7 Green filter"]
["Date of DSM-measurement:","2019-01-31",null,null,"Date of DSM-measurement:",null,null,null,"Date of DSM-measurement:",null,null,null,"Date of DSM-measurement:",null,null,null,"Date of DSM-measurement:",null,null,null,null,null,"45-50",6,"8",null,"g ","g","g","FeCI3","PAC 18","PAX 18","PAX 9","FeCI3","FeCI3",{"$f":"IF(AND(AI6=\"FeCI3\",B13>0,B15>0,B16>0,B27>0),(B27*$AD$7)/(B16*100)*10,IF(AND(AI6=\"PAC18\",B13>0,B15>0,B16>0,B27>0),(B27*$AE$7)/(B16*100)*10,IF(AND(AI6=\"PAX18\",B13>0,B15>0,B16>0,B27>0),(B27*$AF$7)/(B16*100)*10,IF(AND(AI6=\"PAC9\",B13>0,B15>0,B16>0,B27>0),(B27*$AG$7)/(B16*100)*10,IF(AND(AI6=\"Lime\",B13>0,B15>0,B16>0,B27>0),(B27*B26)/B16,IF(AND(AI6=\"Lime milk\",B13>0,B15>0,B16>0,B27>0),(B27*B26/1.32)/B16,\"\"))))))","v":6.6666666666666661},"effective lime dosage in kg:","g","ml",null,null,"KR 44-2002 A / Blue filter",null,"MuY"]
["Person:",null,"Secondary activated sludge",null,"Person:",null,"Secondary activated sludge",null,"Person:",null,"Secondary activated sludge",null,"Person:",null,null,null,"Person:",null,null,null,null,null,"35-40",8,"8",5,null,null,null,600,240,240,120,"PAC18","PAC18",{"$f":"IF(AND(AI7=\"FeCI3\",F13>0,F15>0,F16>0,F27>0),(F27*$AD$7)/(F16*100)*10,IF(AND(AI7=\"PAC18\",F13>0,F15>0,F16>0,F27>0),(F27*$AE$7)/(F16*100)*10,IF(AND(AI7=\"PAX18\",F13>0,F15>0,F16>0,F27>0),(F27*$AF$7)/(F16*100)*10,IF(AND(AI7=\"PAC9\",F13>0,F15>0,F16>0,F27>0),(F27*$AG$7)/(F16*100)*10,IF(AND(AI7=\"Lime\",F13>0,F15>0,F16>0,F27>0),(F27*F26)/F16,IF(AND(AI7=\"Lime milk\",F13>0,F15>0,F16>0,F27>0),(F27*F26/1.32)/F16,\"\"))))))","v":1.3333333333333333},"active substance dosage in kg:",null,null,null,null,"W 08-100 / Brown filter",null,"MiJ",null,null,null,null,null,null,null,null,2024]
[null,null,null,null,null,null,null,null,null,null,null,null,null,null,null,null,null,null,null,null,null,null,"30-35",10,"8",5,null,null,null,null,null,null,null,"PAX18","Lime milk",{"$f":"IF(AND(AI8=\"FeCI3\",J27>0,J16>0,J15>0,J13>0),(J27*$AD$7)/(J16*100)*10,IF(AND(AI8=\"PAC18\",J27>0,J16>0,J15>0,J13>0),(J27*$AE$7)/(J16*100)*10,IF(AND(AI8=\"PAX18\",J27>0,J16>0,J15>0,J13>0),(J27*$AF$7)/(J16*100)*10,IF(AND(AI8=\"PAC9\",J27>0,J16>0,J15>0,J13>0),(J27*$AG$7)/(J16*100)*10,IF(AND(AI8=\"Lime\",J27>0,J16>0,J15>0,J13>0),(J27*J26)/J16,IF(AND(AI8=\"Lime milk\",J27>0,J16>0,J15>0,J13>0),(J27*J26/1.32)/J16,\"\"))))))","v":30.303030303030297},null,null,null,null,null,"W 08-570 / Red filter",null,"FrM"]
[null,null,null,null,null,null,null,null,null,null,null,null,null,null,null,null,null,null,null,null,null,null,"25-30",15,"",5,null,null,null,null,null,null,null,"PAC9","",{"$f":"IF(AND(AI9=\"FeCI3\",N27>0,N16>0,N15>0,N13>0),(N27*$AD$7)/(N16*100)*10,IF(AND(AI9=\"PAC18\",N27>0,N16>0,N15>0,N13>0),(N27*$AE$7)/(N16*100)*10,IF(AND(AI9=\"PAX18\",N27>0,N16>0,N15>0,N13>0),(N27*$AF$7)/(N16*100)*10,IF(AND(AI9=\"PAC9\",N27>0,N16>0,N15>0,N13>0),(N27*AG7)/(N16*100)*10,IF(AND(AI9=\"Lime\",N27>0,N16>0,N15>0,N13>0),(N27*N26)/N16,IF(AND(AI9=\"Lime milk\",N27>0,N16>0,N15>0,N13>0),(N27*N26/1.32)/N16,\"\"))))))","v":""},null,null,null,null,null,null,null,null,null,null,null,null,null,null,null,null,{"$f":"_xlfn.SEQUENCE(370,1,DATE($C$1,1,1)-WEEKDAY(DATE($C$1,1,1),2)+1,1)","v":"2024-12-30"},{"$f":"TEXT(BA9,\"TT.MM.JJJJ\")","v":"30.12.2024"}]
[null,null,null,null,null,null,null,null,null,null,null,null,null,null,null,null,null,null,null,null,null,null,null,null,"",3,null,null,null,null,null,null,null,"Lime","",{"$f":"IF(AND(AI10=\"FeCI3\",R13>0,R15>0,R16>0,R27>0),(R27*$AD$7)/(R16*100)*10,IF(AND(AI10=\"PAC18\",R13>0,R15>0,R16>0,R27>0),(R27*$AE$7)/(R16*100)*10,IF(AND(AI10=\"PAX18\",R13>0,R15>0,R16>0,R27>0),(R27*$AF$7)/(R16*100)*10,IF(AND(AI10=\"PAC9\",R13>0,R15>0,R16>0,R27>0),(R27*AG7)/(R16*100)*10,IF(AND(AI10=\"Lime\",R13>0,R15>0,R16>0,R27>0),(R27*R26)/R16,IF(AND(AI10=\"Lime milk\",R13>0,R15>0,R16>0,R27>0),(R27*R26/1.32)/R16,\"\"))))))","v":""},null,null,null,null,null,null,null,null,null,null,null,null,null,null,null,null,"2024-12-31",{"$f":"TEXT(BA10,\"TT.MM.JJJJ\")","v":"31.12.2024"}]
["Sample condition",null,null,null,"Sample condition",null,null,null,"Sample condition",null,null,null,"Sample condition",null,null,null,"Sample condition",null,null,null,null,null,null,null,"",3,null,null,null,null,null,null,null,"Lime milk","",{"$f":"IF(AND(AI11=\"FeCI3\",B62>0,B64>0,B65>0,B76>0),(B76*$AD$7)/(B65*100)*10,IF(AND(AI11=\"PAC18\",B62>0,B64>0,B65>0,B76>0),(B76*$AE$7)/(B65*100)*10,IF(AND(AI11=\"PAX18\",B62>0,B64>0,B65>0,B76>0),(B76*$AF$7)/(B65*100)*10,IF(AND(AI11=\"PAC9\",B62>0,B64>0,B65>0,B76>0),(B76*AG7)/(B65*100)*10,IF(AND(AI11=\"Lime\",B62>0,B64>0,B65>0,B76>0),(B75*B76)/B65,IF(AND(AI11=\"Lime milk\",B62>0,B64>0,B65>0,B76>0),(B75*B76/1.32)/B65,\"\"))))))","v":""},null,null,null,null,null,null,null,null,null,null,null,null,null,null,null,null,"2025-01-01","01.01.2025"]
["type of sample:","ÜSS",null,null,"type of sample:","ÜSS",null,null,"type of sample:","ÜSS",null,null,"type of sample:",null,null,null,"type of sample:",null,null,null,null,null,null,null,"",2,null,null,null,null,null,null,null,null,"",{"$f":"IF(AND(AI12=\"FeCI3\",F62>0,F64>0,F65>0,F76>0),(F76*$AD$7)/(F65*100)*10,IF(AND(AI12=\"PAC18\",F62>0,F64>0,F65>0,F76>0),(F76*$AE$7)/(F65*100)*10,IF(AND(AI12=\"PAX18\",F62>0,F64>0,F65>0,F76>0),(F76*$AF$7)/(F65*100)*10,IF(AND(AI12=\"PAC9\",F62>0,F64>0,F64>0,F65>0),(F76*AG7)/(F65*100)*10,IF(AND(AI12=\"Lime\",F62>0,F64>0,F65>0,F76>0),(F76*F75)/F65,IF(AND(AI12=\"Lime milk\",F62>0,F64>0,F65>0,F76>0),(F76*F75/1.32)/F65,\"\"))))))","v":""},null,null,null,null,null,null,null,null,null,null,null,null,null,null,null,null,"2025-01-02","02.01.2025"]
["DS-content:",3,"%",null,"DS-content:",3,"%",null,"DS-content:",3,"%",null,"DS-content:",null,"%",null,"DS-content:",null,"%",null,null,null,null,null,"",1,null,null,null,null,null,null,null,null,"",{"$f":"IF(AND(AI13=\"FeCI3\",J62>0,J64>0,J65>0,J76>0),(J76*$AD$7)/(J65*100)*10,IF(AND(AI13=\"PAC18\",J62>0,J64>0,J65>0,J76>0),(J76*$AE$7)/(J65*100)*10,IF(AND(AI13=\"PAX18\",J62>0,J64>0,J65>0,J76>0),(J76*$AF$7)/(J65*100)*10,IF(AND(AI13=\"PAC9\",J62>0,J64>0,J65>0,J76>0),(J76*$AG$7)/(J65*100)*10,IF(AND(AI13=\"lime\",J62>0,J64>0,J65>0,J76>0),(J76*J75)/J65,IF(AND(AI13=\"lime milk\",J62>0,J64>0,J65>0,J76>0),(J76*J75/1.32)/J65,\"\"))))))","v":""},null,null,null,null,null,null,null,null,null,null,null,null,null,null,null,null,"2025-01-03","03.01.2025"]
["13.0 g DS corresponds:",{"$f":"IF(B13>0,13/(B13/100),\"\")","v":433.33333333333337},"g of sample",null,"13.0 g DS corresponds:",{"$f":"IF(F13>0,13/(F13/100),\"\")","v":433.33333333333337},"g sludge",null,"13.0 g DS corresponds:",{"$f":"IF(J13>0,13/(J13/100),\"\")","v":433.33333333333337},"g sludge",null,"13.0 g DS corresponds:",{"$f":"IF(N13>0,13/(N13/100),\"\")","v":""},"g sludge",null,"13.0 g DS corresponds:",{"$f":"IF(R13>0,13/(R13/100),\"\")","v":""},"g sludge",null,null,null,null,null,"",3,null,null,null,null,null,null,null,null,"",{"$f":"IF(AND(AI14=\"FeCI3\",N62>0,N64>0,N65>0,N76>0),(N76*$AD$7)/(N65*100)*10,IF(AND(AI14=\"PAC18\",N62>0,N64>0,N65>0,N76>0),(N76*$AE$7)/(N65*100)*10,IF(AND(AI14=\"PAX18\",N62>0,N64>0,N65>0,N76>0),(N76*$AF$7)/(N65*100)*10,IF(AND(AI14=\"PAC9\",N62>0,N64>0,N65>0,N76>0),(N76*$AG$7)/(N65*100)*10,IF(AND(AI14=\"lime\",N62>0,N64>0,N65>0,N76>0),(N76*N75)/N65,IF(AND(AI14=\"lime milk\",N62>0,N64>0,N65>0,N76>0),(N76*N75/1.32)/N65,\"\"))))))","v":""},null,null,null,null,null,null,null,null,null,null,null,null,null,null,null,null,"2025-01-04","04.01.2025"]
["Tested sample volume",300," ml of sample",null,"Tested sample volume",300," ml of sludge",null,"Tested sample volume",300," ml of sludge",null,"Tested sample volume",null," ml of sludge",null,"Tested sample volume",null," ml of sludge",null,null,null,null,null,"8",3,null,null,null,null,null,null,null,null,"",{"$f":"IF(AND(AI15=\"FeCI3\",R62>0,R64>0,R65>0,R76>0),(R76*$AD$7)/(R65*100)*10,IF(AND(AI15=\"PAC18\",R62>0,R64>0,R65>0,R76>0),(R76*$AE$7)/(R65*100)*10,IF(AND(AI15=\"PAX18\",R62>0,R64>0,R65>0,R76>0),(R76*$AF$7)/(R65*100)*10,IF(AND(AI15=\"PAC9\",R62>0,R64>0,R65>0,R76>0),(R76*AG7)/(R65*100)*10,IF(AND(AI15=\"lime\",R62>0,R64>0,R65>0,R76>0),(R76*R75)/R65,IF(AND(AI15=\"lime milk\",R62>0,R64>0,R65>0,R76>0),(R76*R75/1.32)/R65,\"\"))))))","v":""},null,null,null,null,null,null,null,null,null,null,null,null,null,null,null,null,"2025-01-05","05.01.2025"]
["amount corresponds:",{"$f":"IF(AND(B15>0,B13>0),B15/100*B13,\"\")","v":9},"g DS",null,"amount corresponds:",{"$f":"IF(AND(F15>0,F13>0),F15/100*F13,\"\")","v":9},"g DS",null,"amount corresponds:",{"$f":"IF(AND(J15>0,J13>0),J15/100*J13,\"\")","v":9},"g DS",null,"amount corresponds:",{"$f":"IF(AND(N15>0,N13>0),N15/100*N13,\"\")","v":""},"g DS",null,"amount corresponds:",{"$f":"IF(AND(R15>0,R13>0),R15/100*R13,\"\")","v":""},"g DS",null,null,null,null,null,null,null,null,null,null,null,null,null,null,null,null,null,null,null,null,null,null,null,null,null,null,null,null,null,null,null,null,null,"2025-01-06","06.01.2025"]
["pH:",null,null,null,"pH:",null,null,null,"pH:",null,null,null,"pH:",null,null,null,"pH:",null,null,null,null,null,null,null,null,null,null,null,null,null,null,null,null,null,null,null,null,null,null,null,null,null,null,null,null,null,null,null,null,null,null,null,"2025-01-07","07.01.2025"]
["Temperature:",null,"°C",null,"Temperature:",null,"°C",null,"Temperature:",null,"°C",null,"Temperature:",null,"°C",null,"Temperature:",null,"°C",null,null,null,null,null,null,null,null,null,null,null,null,null,null,null,null,null,null,null,null,null,null,null,null,null,null,null,null,null,null,null,null,null,"2025-01-08","08.01.2025"]
[null,null,null,null,null,null,null,null,null,null,null,null,null,null,null,null,null,null,null,null,null,null,null,null,null,null,null,null,null,null,null,null,null,null,null,null,null,null,null,null,null,null,null,null,null,null,null,null,null,null,null,null,"2025-01-09","09.01.2025"]
["Sample flocculation",null,null,null,"Sample flocculation",null,null,null,"Sample flocculation",null,null,null,"Sample flocculation",null,null,null,"Sample flocculation",null,null,null,null,null,null,null,null,null,null,null,null,null,null,null,null,null,null,null,null,null,null,null,null,null,null,null,null,null,null,null,null,null,null,null,"2025-01-10","10.01.2025"]
["type of polymer:","Flopam 640 HIB",null,null,"type of polymer:","Flopam 640 HIB",null,null,"type of polymer:",null,null,null,"type of polymer:",null,null,null,"type of polymer:",null,null,null,null,null,null,null,null,null,null,null,null,null,null,null,null,null,null,null,null,null,null,null,null,null,null,null,null,null,null,null,null,null,null,null,"2025-01-11","11.01.2025"]
["active substance conc.:",0.22500000000000001,"%AS",null,"active substance conc.:",0.22500000000000001,"%AS",null,"active substance conc.:",null,"%AS",null,"active substance conc.:",null,"%AS",null,"active substance conc.:",null,"%AS",null,null,null,null,null,null,null,null,null,null,null,null,null,null,null,null,null,null,null,null,null,null,null,null,null,null,null,null,null,null,null,null,null,"2025-01-12","12.01.2025"]
["used flocculant solution:",35,{"$f":"IF(A23=\"active substance dosage:\",\"kgAS / tDS\",\"ml\")","v":"ml"},null,"used flocculant solution:",35,{"$f":"IF(E23=\"active substance dosage:\",\"kgAS / tDS\",\"ml\")","v":"ml"},null,"used flocculant solution:",null,{"$f":"IF(I23=\"active substance dosage:\",\"kgAS / tDS\",\"ml\")","v":"ml"},null,"used flocculant solution:",null,{"$f":"IF(M23=\"active substance dosage:\",\"kgAS / tDS\",\"ml\")","v":"ml"},null,"used flocculant solution:",null,{"$f":"IF(Q23=\"active substance dosage:\",\"kgAS / tDS\",\"ml\")","v":"ml"},null,null,null,null,null,null,null,null,null,null,null,null,null,null,null,null,null,null,null,null,null,null,null,null,null,null,null,null,null,null,null,null,null,"2025-01-13","13.01.2025"]
[{"$f":"IF(A23=\"active substance dosage:\",\"used flocculant solution:\",\"active substance dosage:\")","v":"active substance dosage:"},{"$f":"IF(AND(A24=\"active substance dosage:\",B23>0,B22>0,B16>0,B15>0,B13>0),B22*B23/B16*10,\"\")","v":8.75},{"$f":"IF(A23=\"active substance dosage:\",\"ml\",\"kgAS / tDS\")","v":"kgAS / tDS"},null,{"$f":"IF(E23=\"active substance dosage:\",\"used flocculant solution:\",\"active substance dosage:\")","v":"active substance dosage:"},{"$f":"IF(AND(E24=\"active substance dosage:\",F23>0,F22>0,F16>0,F15>0,F13>0),F22*F23/F16*10,\"\")","v":8.75},{"$f":"IF(E23=\"active substance dosage:\",\"ml\",\"kgAS / tDS\")","v":"kgAS / tDS"},null,{"$f":"IF(I23=\"active substance dosage:\",\"used flocculant solution:\",\"active substance dosage:\")","v":"active substance dosage:"},{"$f":"IF(AND(I24=\"active substance dosage:\",J23>0,J22>0,J16>0,J15>0,J13>0),J22*J23/J16*10,\"\")","v":""},{"$f":"IF(I23=\"active substance dosage:\",\"ml\",\"kgAS / tDS\")","v":"kgAS / tDS"},null,{"$f":"IF(M23=\"active substance dosage:\",\"used flocculant solution:\",\"active substance dosage:\")","v":"active substance dosage:"},{"$f":"IF(AND(M24=\"active substance dosage:\",N23>0,N22>0,N16>0,N15>0,N13>0),N22*N23/N16*10,\"\")","v":""},{"$f":"IF(M23=\"active substance dosage:\",\"ml\",\"kgAS / tDS\")","v":"kgAS / tDS"},null,{"$f":"IF(Q23=\"active substance dosage:\",\"used flocculant solution:\",\"active substance dosage:\")","v":"active substance dosage:"},{"$f":"IF(AND(Q24=\"active substance dosage:\",R23>0,R22>0,R16>0,R15>0,R13>0),R22*R23/R16*10,\"\")","v":""},{"$f":"IF(Q23=\"active substance dosage:\",\"ml\",\"kgAS / tDS\")","v":"kgAS / tDS"},null,null,null,null,null,null,null,null,null,null,null,null,null,null,null,null,null,null,null,null,null,null,null,null,null,null,null,null,null,null,null,null,null,"2025-01-14","14.01.2025"]
["type of coagulant:",null,null,null,"type of coagulant:",null,null,null,"type of coagulant:",null,null,null,"type of coagulant:",null,null,null,"type of coagulant:",null,null,null,null,null,null,null,null,null,null,null,null,null,null,null,null,null,null,null,null,null,null,null,null,null,null,null,null,null,null,null,null,null,null,null,"2025-01-15","15.01.2025"]
["active substance conc.:",40,"%",null,"active substance conc.:",18,"%",null,"active substance conc.:",20,"%",null,"active substance conc.:",null,"%",null,"active substance conc.:",null,"%",null,null,null,null,null,null,null,null,null,null,null,null,null,null,null,null,null,null,null,null,null,null,null,null,null,null,null,null,null,null,null,null,null,"2025-01-16","16.01.2025"]
["used dosage of coagulant:",1,{"$f":"IF(AND(AI6=\"Lime\",B26<100),$AM$6,IF(AND(AI6=\"Lime\",B26=100),$AL$6,IF(AND(AI6=\"Lime milk\",B26<100),$AM$6,IF(AND(AI6=\"Lime milk\",B26=100),$AL$6,$AM$6))))","v":"ml"},null,"used dosage of coagulant:",0.5,{"$f":"IF(AND(AI7=\"Lime\",F26<100),$AM$6,IF(AND(AI7=\"Lime\",F26=100),$AL$6,IF(AND(AI7=\"Lime milk\",F26<100),$AM$6,IF(AND(AI7=\"Lime milk\",F26=100),$AL$6,$AM$6))))","v":"ml"},null,"used dosage of coagulant:",18,{"$f":"IF(AND(AI8=\"Lime\",J26<100),$AM$6,IF(AND(AI8=\"Lime\",J26=100),$AL$6,IF(AND(AI8=\"Lime milk\",J26<100),$AM$6,IF(AND(AI8=\"lime milk\",J26=100),$AL$6,$AM$6))))","v":"ml"},null,"used dosage of coagulant:",null,{"$f":"IF(AND(AI9=\"Lime\",N26<100),$AM$6,IF(AND(AI9=\"Lime\",N26=100),$AL$6,IF(AND(AI9=\"Lime milk\",N26<100),$AM$6,IF(AND(AI9=\"Lime milk\",N26=100),$AL$6,$AM$6))))","v":"ml"},null,"used dosage of coagulant:",null,{"$f":"IF(AND(AI10=\"Lime\",R26<100),$AM$6,IF(AND(AI10=\"Lime\",R26=100),$AL$6,IF(AND(AI10=\"Lime milk\",R26<100),$AM$6,IF(AND(AI10=\"Lime milk\",R26=100),$AL$6,$AM$6))))","v":"ml"},null,null,null,null,null,null,null,null,null,null,null,null,null,null,null,null,null,null,null,null,null,null,null,null,null,null,null,null,null,null,null,null,null,"2025-01-17","17.01.2025"]
["active substance dosage in %:",{"$f":"IF(AI6=\"FeCI3\",AJ6,IF(AI6=\"PAC18\",AJ6,IF(AI6=\"PAX18\",AJ6,IF(AI6=\"PAC9\",AJ6,IF(AI6=\"Lime\",AJ6,IF(AI6=\"Lime milk\",AJ6,\"\"))))))","v":6.6666666666666661},"% w(active) / w(DS)",null,"active substance dosage in %:",{"$f":"IF(AI7=\"FeCI3\",AJ7,IF(AI7=\"PAC18\",AJ7,IF(AI7=\"PAX18\",AJ7,IF(AI7=\"PAC9\",AJ7,IF(AI7=\"Lime\",AJ7,IF(AI7=\"Lime milk\",AJ7,\"\"))))))","v":1.3333333333333333},"% w(active) / w(DS)",null,"active substance dosage in %:",{"$f":"IF(AI8=\"FeCI3\",AJ8,IF(AI8=\"PAC18\",AJ8,IF(AI8=\"PAX18\",AJ8,IF(AI8=\"PAC9\",AJ8,IF(AI8=\"Lime\",AJ8,IF(AI8=\"Lime milk\",AJ8,\"\"))))))","v":30.303030303030297},"% w(active) / w(DS)",null,"active substance dosage in %:",{"$f":"IF(AI9=\"FeCI3\",AJ9,IF(AI9=\"PAC18\",AJ9,IF(AI9=\"PAX18\",AJ9,IF(AI9=\"PAC9\",AJ9,IF(AI9=\"Lime\",AJ9,IF(AI9=\"Lime milk\",AJ9,\"\"))))))","v":""},"% w(active) / w(DS)",null,"active substance dosage in %:",{"$f":"IF(AI10=\"FeCI3\",AJ10,IF(AI10=\"PAC18\",AJ10,IF(AI10=\"PAX18\",AJ10,IF(AI10=\"PAC9\",AJ10,IF(AI10=\"Lime\",AJ10,IF(AI10=\"Lime milk\",AJ10,\"\"))))))","v":""},"% w(active) / w(DS)",null,null,null,null,null,null,null,null,null,null,null,null,null,null,null,null,null,null,null,null,null,null,null,null,null,null,null,null,null,null,null,null,null,"2025-01-18","18.01.2025"]
[{"$f":"IF(OR(AI6=5,AI6=6),$AK$6,$AK$7)","v":"active substance dosage in kg:"},{"$f":"IFERROR(B28*10,\"\")","v":66.666666666666657},"kgAS / tDS",null,{"$f":"IF(OR(AI7=5,AI7=6),$AK$6,$AK$7)","v":"active substance dosage in kg:"},{"$f":"IFERROR(F28*10,\"\")","v":13.333333333333332},"kgAS / tDS",null,{"$f":"IF(OR(AI8=5,AI8=6),$AK$6,$AK$7)","v":"active substance dosage in kg:"},{"$f":"IFERROR(J28*10,\"\")","v":303.030303030303},"kgAS / tDS",null,{"$f":"IF(OR(AI9=5,AI9=6),$AK$6,$AK$7)","v":"active substance dosage in kg:"},{"$f":"IFERROR(N28*10,\"\")","v":""},"kgAS / tDS",null,{"$f":"IF(OR(AI10=5,AI10=6),$AK$6,$AK$7)","v":"active substance dosage in kg:"},{"$f":"IFERROR(R28*10,\"\")","v":""},"kgAS / tDS",null,null,null,null,null,null,null,null,null,null,null,null,null,null,null,null,null,null,null,null,null,null,null,null,null,null,null,null,null,null,null,null,null,"2025-01-19","19.01.2025"]
["flocs. aspect:","big, stable floccs",null,null,"flocs. aspect:","big, stable floccs",null,null,"flocs. aspect:","change of viscosity",null,null,"flocs. aspect:",null,null,null,"flocs. aspect:",null,null,null,null,null,null,null,null,null,null,null,null,null,null,null,null,null,null,null,null,null,null,null,null,null,null,null,null,null,null,null,null,null,null,null,"2025-01-20","20.01.2025"]
[null,null,null,null,null,null,null,null,null,null,null,null,null,null,null,null,null,null,null,null,null,null,null,null,null,null,null,null,null,null,null,null,null,null,null,null,null,null,null,null,null,null,null,null,null,null,null,null,null,null,null,null,"2025-01-21","21.01.2025"]
["Test device settings",null,null,null,"Test device settings",null,null,null,"Test device settings",null,null,null,"Test device settings",null,null,null,"Test device settings",null,null,null,null,null,null,null,null,null,null,null,null,null,null,null,null,null,null,null,null,null,null,null,null,null,null,null,null,null,null,null,null,null,null,null,"2025-01-22","22.01.2025"]
["pressure",2.5,"Nm",null,"pressure",2.5,"Nm",null,"pressure",2.5,"Nm",null,"pressure",2.5,"Nm",null,"pressure",2.5,"Nm",null,null,null,null,null,null,null,null,null,null,null,null,null,null,null,null,null,null,null,null,null,null,null,null,null,null,null,null,null,null,null,null,null,"2025-01-23","23.01.2025"]
["speed of rotation",null,"rpm",null,"speed of rotation",null,"rpm",null,"speed of rotation",null,"rpm",null,"speed of rotation",null,"rpm",null,"speed of rotation",null,"rpm",null,null,null,null,null,null,null,null,null,null,null,null,null,null,null,null,null,null,null,null,null,null,null,null,null,null,null,null,null,null,null,null,null,"2025-01-24","24.01.2025"]
["total time of a cyle",{"$f":"IF(Y6=\"6\",W6,IF(Y6=\"8\",W7,IF(Y6=\"10\",W8,IF(Y6=\"15\",W9,\"\"))))","v":"35-40"},"seconds",null,"total time of a cyle",{"$f":"IF(Y7=\"6\",W6,IF(Y7=\"8\",W7,IF(Y7=\"10\",W8,IF(Y7=\"15\",W9,\"\"))))","v":"35-40"},"seconds",null,"total time of a cyle",{"$f":"IF(Y8=\"6\",W6,IF(Y8=\"8\",W7,IF(Y8=\"10\",W8,IF(Y8=\"15\",W9,\"\"))))","v":"35-40"},"seconds",null,"total time of a cyle",{"$f":"IF(Y9=\"6\",W6,IF(Y9=\"8\",W7,IF(Y9=\"10\",W8,IF(Y9=\"15\",W9,\"\"))))","v":""},"seconds",null,"total time of a cyle",{"$f":"IF(Y10=\"6\",W6,IF(Y10=\"8\",W7,IF(Y10=\"10\",W8,IF(Y10=\"15\",W9,\"\"))))","v":""},"seconds",null,null,null,null,null,null,null,null,null,null,null,null,null,null,null,null,null,null,null,null,null,null,null,null,null,null,null,null,null,null,null,null,null,"2025-01-25","25.01.2025"]
["number of twisting cyle",5,"n",null,"number of twisting cyle",5,"n",null,"number of twisting cyle",null,"n",null,"number of twisting cyle",null,"n",null,"number of twisting cyle",null,"n",null,null,null,null,null,null,null,null,null,null,null,null,null,null,null,null,null,null,null,null,null,null,null,null,null,null,null,null,null,null,null,null,null,"2025-01-26","26.01.2025"]
["operation type","semi automatic","brushless DC motor with driver",null,"operation type","semi automatic","brushless DC motor with driver",null,"operation type","semi automatic","brushless DC motor with driver",null,"operation type","semi automatic","brushless DC motor with driver",null,"operation type","semi automatic","brushless DC motor with driver",null,null,null,null,null,null,null,null,null,null,null,null,null,null,null,null,null,null,null,null,null,null,null,null,null,null,null,null,null,null,null,null,null,"2025-01-27","27.01.2025"]
[null,null,null,null,null,null,null,null,null,null,null,null,null,null,null,null,null,null,null,null,null,null,null,null,null,null,null,null,null,null,null,null,null,null,null,null,null,null,null,null,null,null,null,null,null,null,null,null,null,null,null,null,"2025-01-28","28.01.2025"]
["Results",null,null,null,"Results",null,null,null,"Results",null,null,null,"Results",null,null,null,"Results",null,null,null,null,null,null,null,null,null,null,null,null,null,null,null,null,null,null,null,null,null,null,null,null,null,null,null,null,null,null,null,null,null,null,null,"2025-01-29","29.01.2025"]
["phase separation:","good",null,null,"phase separation:","good",null,null,"phase separation:","good",null,null,"phase separation:",null,null,null,"phase separation:",null,null,null,null,null,null,null,null,null,null,null,null,null,null,null,null,null,null,null,null,null,null,null,null,null,null,null,null,null,null,null,null,null,null,null,"2025-01-30","30.01.2025"]
["water releasing:","slow",null,null,"water releasing:","slow",null,null,"water releasing:","slow",null,null,"water releasing:",null,null,null,"water releasing:",null,null,null,null,null,null,null,null,null,null,null,null,null,null,null,null,null,null,null,null,null,null,null,null,null,null,null,null,null,null,null,null,null,null,null,"2025-01-31","31.01.2025"]
["filtration aspect:","clear, no visible solids",null,null,"filtration aspect:","clear, no visible solids",null,null,"filtration aspect:","clear, no visible solids",null,null,"filtration aspect:",null,null,null,"filtration aspect:",null,null,null,null,null,null,null,null,null,null,null,null,null,null,null,null,null,null,null,null,null,null,null,null,null,null,null,null,null,null,null,null,null,null,null,"2025-02-01","01.02.2025"]
["total DS of filtrate:",0.1,"%",null,"total DS of filtrate:",0.05,"%",null,"total DS of filtrate:",0.1,"%",null,"total DS of filtrate:",null,"%",null,"total DS of filtrate:",null,"%",null,null,null,null,null,null,null,null,null,null,null,null,null,null,null,null,null,null,null,null,null,null,null,null,null,null,null,null,null,null,null,null,null,"2025-02-02","02.02.2025"]
["calculated capture rate:",{"$f":"IF(B43>0,((B13-B43)*B50)/((B50-B43)*B13)*100,\"\")","v":97.013142174432517},"%",null,"calculated capture rate:",{"$f":"IF(F43>0,((F13-F43)*F50)/((F50-F43)*F13)*100,\"\")","v":98.487219613980187},"%",null,"calculated capture rate:",{"$f":"IF(J43>0,((J13-J43)*J50)/((J50-J43)*J13)*100,\"\")","v":96.881959910913153},"%",null,"calculated capture rate:",{"$f":"IF(N43>0,((N13-N43)*N50)/((N50-N43)*N13)*100,\"\")","v":""},"%",null,"calculated capture rate:",{"$f":"IF(R43>0,((R13-R43)*R50)/((R50-R43)*R13)*100,\"\")","v":""},"%",null,null,null,null,null,null,null,null,null,null,null,null,null,null,null,null,null,null,null,null,null,null,null,null,null,null,null,null,null,null,null,null,null,"2025-02-03","03.02.2025"]
["behavior of the solid-liquid separation","according calculated caprute rate or filtration aspect very good",null,null,"behavior of the solid-liquid separation","according calculated caprute rate or filtration aspect very good","%",null,"behavior of the solid-liquid separation","according calculated caprute rate or filtration aspect very good",null,null,"behavior of the solid-liquid separation",null,null,null,"behavior of the solid-liquid separation",null,null,null,null,null,null,null,null,null,null,null,null,null,null,null,null,null,null,null,null,null,null,null,null,null,null,null,null,null,null,null,null,null,null,null,"2025-02-04","04.02.2025"]
["sticking/clogging of the filter:","no sticking or clogging of filter",null,null,"sticking/clogging of the filter:","no sticking or clogging of filter",null,null,"sticking/clogging of the filter:","no sticking or clogging of filter",null,null,"sticking/clogging of the filter:",null,null,null,"sticking/clogging of the filter:",null,null,null,null,null,null,null,null,null,null,null,null,null,null,null,null,null,null,null,null,null,null,null,null,null,null,null,null,null,null,null,null,null,null,null,"2025-02-05","05.02.2025"]
["filter cake aspect :","light-brown",null,null,"filter cake aspect :","light-brown",null,null,"filter cake aspect :","light-brown",null,null,"filter cake aspect :",null,null,null,"filter cake aspect :",null,null,null,null,null,null,null,null,null,null,null,null,null,null,null,null,null,null,null,null,null,null,null,null,null,null,null,null,null,null,null,null,null,null,null,"2025-02-06","06.02.2025"]
["tixotrophy :","small pieces",null,null,"tixotrophy :","small pieces",null,null,"tixotrophy :","crumbly",null,null,"tixotrophy :",null,null,null,"tixotrophy :",null,null,null,null,null,null,null,null,null,null,null,null,null,null,null,null,null,null,null,null,null,null,null,null,null,null,null,null,null,null,null,null,null,null,null,"2025-02-07","07.02.2025"]
["weight of the filter cake",33,{"$f":"IF(B49=\"\",AC6,IF(B49>33,AA6,IF(B49<27,AA6,AB6)))","v":"g"},null,"weight of the filter cake",28,{"$f":"IF(F49=\"\",AC6,IF(F49>33,AA6,IF(F49<27,AA6,AB6)))","v":"g"},null,"weight of the filter cake",27,{"$f":"IF(J49=\"\",AC6,IF(J49>33,AA6,IF(J49<27,AA6,AB6)))","v":"g"},null,"weight of the filter cake",null,{"$f":"IF(N49=\"\",AC6,IF(N49>33,AA6,IF(N49<27,AA6,AB6)))","v":"g"},null,"weight of the filter cake",null,{"$f":"IF(R49=\"\",AC6,IF(R49>33,AA6,IF(R49<27,AA6,AB6)))","v":"g"},null,null,null,null,null,null,null,null,null,null,null,null,null,null,null,null,null,null,null,null,null,null,null,null,null,null,null,null,null,null,null,null,null,"2025-02-08","08.02.2025"]
["DS of the cake:",28,"% (quick balance \"Sartorius\")",null,"DS of the cake:",32,"% (quick balance \"Sartorius\")",null,"DS of the cake:",45,"% (quick balance \"Sartorius\")",null,"DS of the cake:",null,"% (quick balance \"Sartorius\")",null,"DS of the cake:",null,"% (quick balance \"Sartorius\")",null,null,null,null,null,null,null,null,null,null,null,null,null,null,null,null,null,null,null,null,null,null,null,null,null,null,null,null,null,null,null,null,null,"2025-02-09","09.02.2025"]
[null,null,null,null,null,null,null,null,null,null,null,null,null,null,null,null,null,null,null,null,null,null,null,null,null,null,null,null,null,null,null,null,null,null,null,null,null,null,null,null,null,null,null,null,null,null,null,null,null,null,null,null,"2025-02-10","10.02.2025"]
["BTT-Trial No. 6",null,null,null,"BTT-Trial No. 7",null,null,null,"BTT-Trial No. 8",null,null,null,"BTT-Trial No. 9",null,null,null,"BTT-Trial No. 10",null,null,null,null,null,null,null,null,null,null,null,null,null,null,null,null,null,null,null,null,null,null,null,null,null,null,null,null,null,null,null,null,null,null,null,"2025-02-11","11.02.2025"]
[null,null,null,null,null,null,null,null,null,null,null,null,null,null,null,null,null,null,null,null,null,null,null,null,null,null,null,null,null,null,null,null,null,null,null,null,null,null,null,null,null,null,null,null,null,null,null,null,null,null,null,null,"2025-02-12","12.02.2025"]
["Date of taken sample:",null,"Used filter type",null,"Date of taken sample:",null,"Used filter type",null,"Date of taken sample:",null,"Used filter type",null,"Date of taken sample:",null,"Used filter type",null,"Date of taken sample:",null,"Used filter type",null,null,null,null,null,null,null,null,null,null,null,null,null,null,null,null,null,null,null,null,null,null,null,null,null,null,null,null,null,null,null,null,null,"2025-02-13","13.02.2025"]
["Date of DSM-measurement:",null,null,null,"Date of DSM-measurement:",null,null,null,"Date of DSM-measurement:",null,null,null,"Date of DSM-measurement:",null,null,null,"Date of DSM-measurement:",null,null,null,null,null,null,null,null,null,null,null,null,null,null,null,null,null,null,null,null,null,null,null,null,null,null,null,null,null,null,null,null,null,null,null,"2025-02-14","14.02.2025"]
["Person:",null,null,null,"Person:",null,null,null,"Person:",null,null,null,"Person:",null,null,null,"Person:",null,null,null,null,null,null,null,null,null,null,null,null,null,null,null,null,null,null,null,null,null,null,null,null,null,null,null,null,null,null,null,null,null,null,null,"2025-02-15","15.02.2025"]
[null,null,null,null,null,null,null,null,null,null,null,null,null,null,null,null,null,null,null,null,null,null,null,null,null,null,null,null,null,null,null,null,null,null,null,null,null,null,null,null,null,null,null,null,null,null,null,null,null,null,null,null,"2025-02-16","16.02.2025"]
[null,null,null,null,null,null,null,null,null,null,null,null,null,null,null,null,null,null,null,null,null,null,null,null,null,null,null,null,null,null,null,null,null,null,null,null,null,null,null,null,null,null,null,null,null,null,null,null,null,null,null,null,"2025-02-17","17.02.2025"]
[null,null,null,null,null,null,null,null,null,null,null,null,null,null,null,null,null,null,null,null,null,null,null,null,null,null,null,null,null,null,null,null,null,null,null,null,null,null,null,null,null,null,null,null,null,null,null,null,null,null,null,null,"2025-02-18","18.02.2025"]
["Sample condition",null,null,null,"Sample condition",null,null,null,"Sample condition",null,null,null,"Sample condition",null,null,null,"Sample condition",null,null,null,null,null,null,null,null,null,null,null,null,null,null,null,null,null,null,null,null,null,null,null,null,null,null,null,null,null,null,null,null,null,null,null,"2025-02-19","19.02.2025"]
["type of sample:",null,null,null,"type of sample:",null,null,null,"type of sample:",null,null,null,"type of sample:",null,null,null,"type of sample:",null,null,null,null,null,null,null,null,null,null,null,null,null,null,null,null,null,null,null,null,null,null,null,null,null,null,null,null,null,null,null,null,null,null,null,"2025-02-20","20.02.2025"]
["DS-content:",null,"%",null,"DS-content:",null,"%",null,"DS-content:",null,"%",null,"DS-content:",null,"%",null,"DS-content:",null,"%",null,null,null,null,null,null,null,null,null,null,null,null,null,null,null,null,null,null,null,null,null,null,null,null,null,null,null,null,null,null,null,null,null,"2025-02-21","21.02.2025"]
["13.0 g DS corresponds:",{"$f":"IF(B62>0,13/(B62/100),\"\")","v":""},"g sludge",null,"13.0 g DS corresponds:",{"$f":"IF(F62>0,13/(F62/100),\"\")","v":""},"g sludge",null,"13.0 g DS corresponds:",{"$f":"IF(J62>0,13/(J62/100),\"\")","v":""},"g sludge",null,"13.0 g DS corresponds:",{"$f":"IF(N62>0,13/(N62/100),\"\")","v":""},"g sludge",null,"13.0 g DS corresponds:",{"$f":"IF(R62>0,13/(R62/100),\"\")","v":""},"g sludge",null,null,null,null,null,null,null,null,null,null,null,null,null,null,null,null,null,null,null,null,null,null,null,null,null,null,null,null,null,null,null,null,null,"2025-02-22","22.02.2025"]
["Tested sample volume",null," ml of sludge",null,"Tested sample volume",null," ml of sludge",null,"Tested sample volume",null," ml of sludge",null,"Tested sample volume",null," ml of sludge",null,"Tested sample volume",null," ml of sludge",null,null,null,null,null,null,null,null,null,null,null,null,null,null,null,null,null,null,null,null,null,null,null,null,null,null,null,null,null,null,null,null,null,"2025-02-23","23.02.2025"]
["amount corresponds:",{"$f":"IF(AND(B64>0,B62>0),B64/100*B62,\"\")","v":""},"g DS",null,"amount corresponds:",{"$f":"IF(AND(F64>0,F62>0),F64/100*F62,\"\")","v":""},"g DS",null,"amount corresponds:",{"$f":"IF(AND(J64>0,J62>0),J64/100*J62,\"\")","v":""},"g DS",null,"amount corresponds:",{"$f":"IF(AND(N64>0,N62>0),N64/100*N62,\"\")","v":""},"g DS",null,"amount corresponds:",{"$f":"IF(AND(R64>0,R62>0),R64/100*R62,\"\")","v":""},"g DS",null,null,null,null,null,null,null,null,null,null,null,null,null,null,null,null,null,null,null,null,null,null,null,null,null,null,null,null,null,null,null,null,null,"2025-02-24","24.02.2025"]
["pH:",null,null,null,"pH:",null,null,null,"pH:",null,null,null,"pH:",null,null,null,"pH:",null,null,null,null,null,null,null,null,null,null,null,null,null,null,null,null,null,null,null,null,null,null,null,null,null,null,null,null,null,null,null,null,null,null,null,"2025-02-25","25.02.2025"]
["Temperature:",null,"°C",null,"Temperature:",null,"°C",null,"Temperature:",null,"°C",null,"Temperature:",null,"°C",null,"Temperature:",null,"°C",null,null,null,null,null,null,null,null,null,null,null,null,null,null,null,null,null,null,null,null,null,null,null,null,null,null,null,null,null,null,null,null,null,"2025-02-26","26.02.2025"]
[null,null,null,null,null,null,null,null,null,null,null,null,null,null,null,null,null,null,null,null,null,null,null,null,null,null,null,null,null,null,null,null,null,null,null,null,null,null,null,null,null,null,null,null,null,null,null,null,null,null,null,null,"2025-02-27","27.02.2025"]
["Sample flocculation",null,null,null,"Sample flocculation",null,null,null,"Sample flocculation",null,null,null,"Sample flocculation",null,null,null,"Sample flocculation",null,null,null,null,null,null,null,null,null,null,null,null,null,null,null,null,null,null,null,null,null,null,null,null,null,null,null,null,null,null,null,null,null,null,null,"2025-02-28","28.02.2025"]
["type of polymer:",null,null,null,"type of polymer:",null,null,null,"type of polymer:",null,null,null,"type of polymer:",null,null,null,"type of polymer:",null,null,null,null,null,null,null,null,null,null,null,null,null,null,null,null,null,null,null,null,null,null,null,null,null,null,null,null,null,null,null,null,null,null,null,"2025-03-01","01.03.2025"]
["active substance conc.:",null,"%AS",null,"active substance conc.:",null,"%AS",null,"active substance conc.:",null,"%AS",null,"active substance conc.:",null,"%AS",null,"active substance conc.:",null,"%AS",null,null,null,null,null,null,null,null,null,null,null,null,null,null,null,null,null,null,null,null,null,null,null,null,null,null,null,null,null,null,null,null,null,"2025-03-02","02.03.2025"]
["used flocculant solution:",null,{"$f":"IF(A72=\"active substance dosage:\",\"kgAS / tDS\",\"ml\")","v":"ml"},null,"used flocculant solution:",null,{"$f":"IF(E72=\"active substance dosage:\",\"kgAS / tDS\",\"ml\")","v":"ml"},null,"used flocculant solution:",null,{"$f":"IF(I72=\"active substance dosage:\",\"kgAS / tDS\",\"ml\")","v":"ml"},null,"used flocculant solution:",null,{"$f":"IF(M72=\"active substance dosage:\",\"kgAS / tDS\",\"ml\")","v":"ml"},null,"used flocculant solution:",null,{"$f":"IF(Q72=\"active substance dosage:\",\"kgAS / tDS\",\"ml\")","v":"ml"},null,null,null,null,null,null,null,null,null,null,null,null,null,null,null,null,null,null,null,null,null,null,null,null,null,null,null,null,null,null,null,null,null,"2025-03-03","03.03.2025"]
[{"$f":"IF(A72=\"active substance dosage:\",\"used flocculant solution:\",\"active substance dosage:\")","v":"active substance dosage:"},{"$f":"IF(AND(A73=\"active substance dosage:\",B72>0,B71>0,B65>0,B64>0,B62>0),B71*B72/B65*10,\"\")","v":""},{"$f":"IF(A72=\"active substance dosage:\",\"ml\",\"kgAS / tDS\")","v":"kgAS / tDS"},null,{"$f":"IF(E72=\"active substance dosage:\",\"used flocculant solution:\",\"active substance dosage:\")","v":"active substance dosage:"},{"$f":"IF(AND(E73=\"active substance dosage:\",F72>0,F71>0,F65>0,F64>0,F62>0),F71*F72/F65*10,\"\")","v":""},{"$f":"IF(E72=\"active substance dosage:\",\"ml\",\"kgAS / tDS\")","v":"kgAS / tDS"},null,{"$f":"IF(I72=\"active substance dosage:\",\"used flocculant solution:\",\"active substance dosage:\")","v":"active substance dosage:"},{"$f":"IF(AND(I73=\"active substance dosage:\",J72>0,J71>0,J65>0,J64>0,J62>0),J71*J72/J65*10,\"\")","v":""},{"$f":"IF(I72=\"active substance dosage:\",\"ml\",\"kgAS / tDS\")","v":"kgAS / tDS"},null,{"$f":"IF(M72=\"active substance dosage:\",\"used flocculant solution:\",\"active substance dosage:\")","v":"active substance dosage:"},{"$f":"IF(AND(M73=\"active substance dosage:\",N72>0,N71>0,N65>0,N64>0,N62>0),N71*N72/N65*10,\"\")","v":""},{"$f":"IF(M72=\"active substance dosage:\",\"ml\",\"kgAS / tDS\")","v":"kgAS / tDS"},null,{"$f":"IF(Q72=\"active substance dosage:\",\"used flocculant solution:\",\"active substance dosage:\")","v":"active substance dosage:"},{"$f":"IF(AND(Q73=\"active substance dosage:\",R72>0,R71>0,R65>0,R64>0,R62>0),R71*R72/R65*10,\"\")","v":""},{"$f":"IF(Q72=\"active substance dosage:\",\"ml\",\"kgAS / tDS\")","v":"kgAS / tDS"},null,null,null,null,null,null,null,null,null,null,null,null,null,null,null,null,null,null,null,null,null,null,null,null,null,null,null,null,null,null,null,null,null,"2025-03-04","04.03.2025"]
["type of coagulant:",null,null,null,"type of coagulant:",null,null,null,"type of coagulant:",null,null,null,"type of coagulant:",null,null,null,"type of coagulant:",null,null,null,null,null,null,null,null,null,null,null,null,null,null,null,null,null,null,null,null,null,null,null,null,null,null,null,null,null,null,null,null,null,null,null,"2025-03-05",{"$f":"TEXT(BA74,\"TT.MM.JJJJ\")","v":"05.03.2025"}]
["active substance conc.:",null,"%",null,"active substance conc.:",null,"%",null,"active substance conc.:",null,"%",null,"active substance conc.:",null,"%",null,"active substance conc.:",null,"%",null,null,null,null,null,null,null,null,null,null,null,null,null,null,null,null,null,null,null,null,null,null,null,null,null,null,null,null,null,null,null,null,null,"2025-03-06","06.03.2025"]
["used dosage of coagulant:",null,{"$f":"IF(AND(AI11=\"Lime\",B75<100),$AM$6,IF(AND(AI11=\"Lime\",B75=100),$AL$6,IF(AND(AI11=\"Lime milk\",B75<100),$AM$6,IF(AND(AI11=\"Lime milk\",B75=100),$AL$6,$AM$6))))","v":"ml"},null,"used dosage of coagulant:",null,{"$f":"IF(AND(AI12=\"lime\",F75<100),$AM$6,IF(AND(AI12=\"lime\",F75=100),$AL$6,IF(AND(AI12=\"Lime milk\",F75<100),$AM$6,IF(AND(AI12=\"lime milk\",F75=100),$AL$6,$AM$6))))","v":"ml"},null,"used dosage of coagulant:",null,{"$f":"IF(AND(AI13=\"lime\",J75<100),$AM$6,IF(AND(AI13=\"lime\",J75=100),$AL$6,IF(AND(AI13=\"lime milk\",J75<100),$AM$6,IF(AND(AI13=\"lime milk\",J75=100),$AL$6,$AM$6))))","v":"ml"},null,"used dosage of coagulant:",null,{"$f":"IF(AND(AI14=\"lime\",N75<100),$AM$6,IF(AND(AI14=\"lime\",N75=100),$AL$6,IF(AND(AI14=\"lime milk\",N75<100),$AM$6,IF(AND(AI14=\"lime milk\",N75=100),$AL$6,$AM$6))))","v":"ml"},null,"used dosage of coagulant:",null,{"$f":"IF(AND(AI15=\"lime\",R75<100),$AM$6,IF(AND(AI15=\"lime\",R75=100),$AL$6,IF(AND(AI15=\"lime milk\",R75<100),$AM$6,IF(AND(AI15=\"lime milk\",R75=100),$AL$6,$AM$6))))","v":"ml"},null,null,null,null,null,null,null,null,null,null,null,null,null,null,null,null,null,null,null,null,null,null,null,null,null,null,null,null,null,null,null,null,null,"2025-03-07","07.03.2025"]
["active substance dosage in %:",{"$f":"IF(AI11=\"FeCI3\",AJ11,IF(AI11=\"PAC18\",AJ11,IF(AI11=\"PAX18\",AJ11,IF(AI11=\"PAC9\",AJ11,IF(AI11=\"Lime\",AJ11,IF(AI11=\"Lime milk\",AJ11,\"\"))))))","v":""},"% w(active) / w(DS)",null,"active substance dosage in %:",{"$f":"IF(AI12=\"FeCI3\",AJ12,IF(AI12=\"PAC18\",AJ12,IF(AI12=\"PAX18\",AJ12,IF(AI12=\"PAC9\",AJ12,IF(AI12=\"Lime\",AJ12,IF(AI12=\"Lime milk\",AJ12,\"\"))))))","v":""},"% w(active) / w(DS)",null,"active substance dosage in %:",{"$f":"IF(AI13=\"FeCI3\",AJ13,IF(AI13=\"PAC18\",AJ13,IF(AI13=\"PAX18\",AJ13,IF(AI13=\"PAC9\",AJ13,IF(AI13=\"Lime\",AJ13,IF(AI13=\"Lime milk\",AJ13,\"\"))))))","v":""},"% w(active) / w(DS)",null,"active substance dosage in %:",{"$f":"IF(AI14=\"FeCI3\",AJ14,IF(AI14=\"PAC18\",AJ14,IF(AI14=\"PAX18\",AJ14,IF(AI14=\"PAC9\",AJ14,IF(AI14=\"lime\",AJ14,IF(AI14=\"lime milk\",AJ14,\"\"))))))","v":""},"% w(active) / w(DS)",null,"active substance dosage in %:",{"$f":"IF(AI15=\"FeCI3\",AJ15,IF(AI15=\"PAC18\",AJ15,IF(AI15=\"PAX18\",AJ15,IF(AI15=\"PAC9\",AJ15,IF(AI15=\"lime\",AJ15,IF(AI15=\"lime milk\",AJ15,\"\"))))))","v":""},"% w(active) / w(DS)",null,null,null,null,null,null,null,null,null,null,null,null,null,null,null,null,null,null,null,null,null,null,null,null,null,null,null,null,null,null,null,null,null,"2025-03-08","08.03.2025"]
[{"$f":"IF(OR(AI11=5,AI11=6),$AK$6,$AK$7)","v":"active substance dosage in kg:"},{"$f":"IFERROR(B77*10,\"\")","v":""},"kgAS / tDS",null,{"$f":"IF(OR(AI12=5,AI12=6),$AK$6,$AK$7)","v":"active substance dosage in kg:"},{"$f":"IFERROR(F77*10,\"\")","v":""},"kgAS / tDS",null,{"$f":"IF(OR(AI13=5,AI13=6),$AK$6,$AK$7)","v":"active substance dosage in kg:"},{"$f":"IFERROR(J77*10,\"\")","v":""},"kgAS / tDS",null,{"$f":"IF(OR(AI14=5,AI14=6),$AK$6,$AK$7)","v":"active substance dosage in kg:"},{"$f":"IFERROR(N77*10,\"\")","v":""},"kgAS / tDS",null,{"$f":"IF(OR(AI15=5,AI15=6),$AK$6,$AK$7)","v":"active substance dosage in kg:"},{"$f":"IFERROR(R77*10,\"\")","v":""},"kgAS / tDS",null,null,null,null,null,null,null,null,null,null,null,null,null,null,null,null,null,null,null,null,null,null,null,null,null,null,null,null,null,null,null,null,null,"2025-03-09","09.03.2025"]
["flocs. aspect:",null,null,null,"flocs. aspect:",null,null,null,"flocs. aspect:",null,null,null,"flocs. aspect:",null,null,null,"flocs. aspect:",null,null,null,null,null,null,null,null,null,null,null,null,null,null,null,null,null,null,null,null,null,null,null,null,null,null,null,null,null,null,null,null,null,null,null,"2025-03-10","10.03.2025"]
[null,null,null,null,null,null,null,null,null,null,null,null,null,null,null,null,null,null,null,null,null,null,null,null,null,null,null,null,null,null,null,null,null,null,null,null,null,null,null,null,null,null,null,null,null,null,null,null,null,null,null,null,"2025-03-11","11.03.2025"]
["Test device settings",null,null,null,"Test device settings",null,null,null,"Test device settings",null,null,null,"Test device settings",null,null,null,"Test device settings",null,null,null,null,null,null,null,null,null,null,null,null,null,null,null,null,null,null,null,null,null,null,null,null,null,null,null,null,null,null,null,null,null,null,null,"2025-03-12","12.03.2025"]
["pressure",2.5,"Nm",null,"pressure",2.5,"Nm",null,"pressure",2.5,"Nm",null,"pressure",2.5,"Nm",null,"pressure",2.5,"Nm",null,null,null,null,null,null,null,null,null,null,null,null,null,null,null,null,null,null,null,null,null,null,null,null,null,null,null,null,null,null,null,null,null,"2025-03-13","13.03.2025"]
["speed of rotation",null,"rpm",null,"speed of rotation",null,"rpm",null,"speed of rotation",null,"rpm",null,"speed of rotation",null,"rpm",null,"speed of rotation",null,"rpm",null,null,null,null,null,null,null,null,null,null,null,null,null,null,null,null,null,null,null,null,null,null,null,null,null,null,null,null,null,null,null,null,null,"2025-03-14","14.03.2025"]
["total time of a cyle",{"$f":"IF(Y11=\"6\",W6,IF(Y11=\"8\",W7,IF(Y11=\"10\",W8,IF(Y11=\"15\",W9,\"\"))))","v":""},"seconds",null,"total time of a cyle",{"$f":"IF(Y12=\"6\",W6,IF(Y12=\"8\",W7,IF(Y12=\"10\",W8,IF(Y12=\"15\",W9,\"\"))))","v":""},"seconds",null,"total time of a cyle",{"$f":"IF(Y13=\"6\",W6,IF(Y13=\"8\",W7,IF(Y13=\"10\",W8,IF(Y13=\"15\",W9,\"\"))))","v":""},"seconds",null,"total time of a cyle",{"$f":"IF(Y14=\"6\",W6,IF(Y14=\"8\",W7,IF(Y14=\"10\",W8,IF(Y14=\"15\",W9,\"\"))))","v":""},"seconds",null,"total time of a cyle",{"$f":"IF(Y15=\"6\",W6,IF(Y15=\"8\",W7,IF(Y15=\"10\",W8,IF(Y15=\"15\",W9,\"\"))))","v":"35-40"},"seconds",null,null,null,null,null,null,null,null,null,null,null,null,null,null,null,null,null,null,null,null,null,null,null,null,null,null,null,null,null,null,null,null,null,"2025-03-15","15.03.2025"]
["number of twisting cyle",null,"n",null,"number of twisting cyle",null,"n",null,"number of twisting cyle",null,"n",null,"number of twisting cyle",null,"n",null,"number of twisting cyle",null,"n",null,null,null,null,null,null,null,null,null,null,null,null,null,null,null,null,null,null,null,null,null,null,null,null,null,null,null,null,null,null,null,null,null,"2025-03-16","16.03.2025"]
["operation type","semi automatic","brushless DC motor with driver",null,"operation type","semi automatic","brushless DC motor with driver",null,"operation type","semi automatic","brushless DC motor with driver",null,"operation type","semi automatic","brushless DC motor with driver",null,"operation type","semi automatic","brushless DC motor with driver",null,null,null,null,null,null,null,null,null,null,null,null,null,null,null,null,null,null,null,null,null,null,null,null,null,null,null,null,null,null,null,null,null,"2025-03-17","17.03.2025"]
[null,null,null,null,null,null,null,null,null,null,null,null,null,null,null,null,null,null,null,null,null,null,null,null,null,null,null,null,null,null,null,null,null,null,null,null,null,null,null,null,null,null,null,null,null,null,null,null,null,null,null,null,"2025-03-18","18.03.2025"]
["Results",null,null,null,"Results",null,null,null,"Results",null,null,null,"Results",null,null,null,"Results",null,null,null,null,null,null,null,null,null,null,null,null,null,null,null,null,null,null,null,null,null,null,null,null,null,null,null,null,null,null,null,null,null,null,null,"2025-03-19","19.03.2025"]
["phase separation:",null,null,null,"phase separation:",null,null,null,"phase separation:",null,null,null,"phase separation:",null,null,null,"phase separation:",null,null,null,null,null,null,null,null,null,null,null,null,null,null,null,null,null,null,null,null,null,null,null,null,null,null,null,null,null,null,null,null,null,null,null,"2025-03-20","20.03.2025"]
["water releasing:",null,null,null,"water releasing:",null,null,null,"water releasing:",null,null,null,"water releasing:",null,null,null,"water releasing:",null,null,null,null,null,null,null,null,null,null,null,null,null,null,null,null,null,null,null,null,null,null,null,null,null,null,null,null,null,null,null,null,null,null,null,"2025-03-21","21.03.2025"]
["filtration aspect:",null,null,null,"filtration aspect:",null,null,null,"filtration aspect:",null,null,null,"filtration aspect:",null,null,null,"filtration aspect:",null,null,null,null,null,null,null,null,null,null,null,null,null,null,null,null,null,null,null,null,null,null,null,null,null,null,null,null,null,null,null,null,null,null,null,"2025-03-22","22.03.2025"]
["total DS of filtrate:",null,"%",null,"total DS of filtrate:",null,"%",null,"total DS of filtrate:",null,"%",null,"total DS of filtrate:",null,"%",null,"total DS of filtrate:",null,"%",null,null,null,null,null,null,null,null,null,null,null,null,null,null,null,null,null,null,null,null,null,null,null,null,null,null,null,null,null,null,null,null,null,"2025-03-23","23.03.2025"]
["calculated capture rate:",{"$f":"IF(B92>0,((B62-B92)*B99)/((B99-B92)*B62)*100,\"\")","v":""},"%",null,"calculated capture rate:",{"$f":"IF(F92>0,((F62-F92)*F99)/((F99-F92)*F62)*100,\"\")","v":""},"%",null,"calculated capture rate:",{"$f":"IF(J92>0,((J62-J92)*J99)/((J99-J92)*J62)*100,\"\")","v":""},"%",null,"calculated capture rate:",{"$f":"IF(N92>0,((N62-N92)*N99)/((N99-N92)*N62)*100,\"\")","v":""},"%",null,"calculated capture rate:",{"$f":"IF(R92>0,((R62-R92)*R99)/((R99-R92)*R62)*100,\"\")","v":""},"%",null,null,null,null,null,null,null,null,null,null,null,null,null,null,null,null,null,null,null,null,null,null,null,null,null,null,null,null,null,null,null,null,null,"2025-03-24","24.03.2025"]
["behavior of the solid-liquid separation",null,null,null,"behavior of the solid-liquid separation",null,null,null,"behavior of the solid-liquid separation",null,null,null,"behavior of the solid-liquid separation",null,null,null,"behavior of the solid-liquid separation",null,null,null,null,null,null,null,null,null,null,null,null,null,null,null,null,null,null,null,null,null,null,null,null,null,null,null,null,null,null,null,null,null,null,null,"2025-03-25","25.03.2025"]
["sticking/clogging of the filter:",null,null,null,"sticking/clogging of the filter:",null,null,null,"sticking/clogging of the filter:",null,null,null,"sticking/clogging of the filter:",null,null,null,"sticking/clogging of the filter:",null,null,null,null,null,null,null,null,null,null,null,null,null,null,null,null,null,null,null,null,null,null,null,null,null,null,null,null,null,null,null,null,null,null,null,"2025-03-26","26.03.2025"]
["filter cake aspect :",null,null,null,"filter cake aspect :",null,null,null,"filter cake aspect :",null,null,null,"filter cake aspect :",null,null,null,"filter cake aspect :",null,null,null,null,null,null,null,null,null,null,null,null,null,null,null,null,null,null,null,null,null,null,null,null,null,null,null,null,null,null,null,null,null,null,null,"2025-03-27","27.03.2025"]
["tixotrophy :",null,null,null,"tixotrophy :",null,null,null,"tixotrophy :",null,null,null,"tixotrophy :",null,null,null,"tixotrophy :",null,null,null,null,null,null,null,null,null,null,null,null,null,null,null,null,null,null,null,null,null,null,null,null,null,null,null,null,null,null,null,null,null,null,null,"2025-03-28","28.03.2025"]
["weight of the filter cake",null,{"$f":"IF(B98=\"\",AC6,IF(B98>33,AA6,IF(B98<27,AA6,AB6)))","v":"g"},null,"weight of the filter cake",null,{"$f":"IF(F98=\"\",AC6,IF(F98>33,AA6,IF(F98<27,AA6,AB6)))","v":"g"},null,"weight of the filter cake",null,{"$f":"IF(J98=\"\",AC6,IF(J98>33,AA6,IF(J98<27,AA6,AB6)))","v":"g"},null,"weight of the filter cake",null,{"$f":"IF(N98=\"\",AC6,IF(N98>33,AA6,IF(N98<27,AA6,AB6)))","v":"g"},null,"weight of the filter cake",null,{"$f":"IF(R98=\"\",AC6,IF(R98>33,AA6,IF(R98<27,AA6,AB6)))","v":"g"},null,null,null,null,null,null,null,null,null,null,null,null,null,null,null,null,null,null,null,null,null,null,null,null,null,null,null,null,null,null,null,null,null,"2025-03-29","29.03.2025"]
["DS of the cake:",null,"% (quick balance \"Sartorius\")",null,"DS of the cake:",null,"% (quick balance \"Sartorius\")",null,"DS of the cake:",null,"% (quick balance \"Sartorius\")",null,"DS of the cake:",null,"% (quick balance \"Sartorius\")",null,"DS of the cake:",null,"% (quick balance \"Sartorius\")",null,null,null,null,null,null,null,null,null,null,null,null,null,null,null,null,null,null,null,null,null,null,null,null,null,null,null,null,null,null,null,null,null,"2025-03-30","30.03.2025"]
[null,null,null,null,null,null,null,null,null,null,null,null,null,null,null,null,null,null,null,null,null,null,null,null,null,null,null,null,null,null,null,null,null,null,null,null,null,null,null,null,null,null,null,null,null,null,null,null,null,null,null,null,"2025-03-31","31.03.2025"]
[null,null,null,null,null,null,null,null,null,null,null,null,null,null,null,null,null,null,null,null,null,null,null,null,null,null,null,null,null,null,null,null,null,null,null,null,null,null,null,null,null,null,null,null,null,null,null,null,null,null,null,null,"2025-04-01","01.04.2025"]
[null,null,null,null,null,null,null,null,null,null,null,null,null,null,null,null,null,null,null,null,null,null,null,null,null,null,null,null,null,null,null,null,null,null,null,null,null,null,null,null,null,null,null,null,null,null,null,null,null,null,null,null,"2025-04-02","02.04.2025"]
[null,null,null,null,null,null,null,null,null,null,null,null,null,null,null,null,null,null,null,null,null,null,null,null,null,null,null,null,null,null,null,null,null,null,null,null,null,null,null,null,null,null,null,null,null,null,null,null,null,null,null,null,"2025-04-03","03.04.2025"]
[null,null,null,null,null,null,null,null,null,null,null,null,null,null,null,null,null,null,null,null,null,null,null,null,null,null,null,null,null,null,null,null,null,null,null,null,null,null,null,null,null,null,null,null,null,null,null,null,null,null,null,null,"2025-04-04","04.04.2025"]
[null,null,null,null,null,null,null,null,null,null,null,null,null,null,null,null,null,null,null,null,null,null,null,null,null,null,null,null,null,null,null,null,null,null,null,null,null,null,null,null,null,null,null,null,null,null,null,null,null,null,null,null,"2025-04-05","05.04.2025"]
[null,null,null,null,null,null,null,null,null,null,null,null,null,null,null,null,null,null,null,null,null,null,null,null,null,null,null,null,null,null,null,null,null,null,null,null,null,null,null,null,null,null,null,null,null,null,null,null,null,null,null,null,"2025-04-06","06.04.2025"]
[null,null,null,null,null,null,null,null,null,null,null,null,null,null,null,null,null,null,null,null,null,null,null,null,null,null,null,null,null,null,null,null,null,null,null,null,null,null,null,null,null,null,null,null,null,null,null,null,null,null,null,null,"2025-04-07","07.04.2025"]
[null,null,null,null,null,null,null,null,null,null,null,null,null,null,null,null,null,null,null,null,null,null,null,null,null,null,null,null,null,null,null,null,null,null,null,null,null,null,null,null,null,null,null,null,null,null,null,null,null,null,null,null,"2025-04-08","08.04.2025"]
[null,null,null,null,null,null,null,null,null,null,null,null,null,null,null,null,null,null,null,null,null,null,null,null,null,null,null,null,null,null,null,null,null,null,null,null,null,null,null,null,null,null,null,null,null,null,null,null,null,null,null,null,"2025-04-09","09.04.2025"]
[null,null,null,null,null,null,null,null,null,null,null,null,null,null,null,null,null,null,null,null,null,null,null,null,null,null,null,null,null,null,null,null,null,null,null,null,null,null,null,null,null,null,null,null,null,null,null,null,null,null,null,null,"2025-04-10","10.04.2025"]
[null,null,null,null,null,null,null,null,null,null,null,null,null,null,null,null,null,null,null,null,null,null,null,null,null,null,null,null,null,null,null,null,null,null,null,null,null,null,null,null,null,null,null,null,null,null,null,null,null,null,null,null,"2025-04-11","11.04.2025"]
[null,null,null,null,null,null,null,null,null,null,null,null,null,null,null,null,null,null,null,null,null,null,null,null,null,null,null,null,null,null,null,null,null,null,null,null,null,null,null,null,null,null,null,null,null,null,null,null,null,null,null,null,"2025-04-12","12.04.2025"]
[null,null,null,null,null,null,null,null,null,null,null,null,null,null,null,null,null,null,null,null,null,null,null,null,null,null,null,null,null,null,null,null,null,null,null,null,null,null,null,null,null,null,null,null,null,null,null,null,null,null,null,null,"2025-04-13","13.04.2025"]
[null,null,null,null,null,null,null,null,null,null,null,null,null,null,null,null,null,null,null,null,null,null,null,null,null,null,null,null,null,null,null,null,null,null,null,null,null,null,null,null,null,null,null,null,null,null,null,null,null,null,null,null,"2025-04-14","14.04.2025"]
[null,null,null,null,null,null,null,null,null,null,null,null,null,null,null,null,null,null,null,null,null,null,null,null,null,null,null,null,null,null,null,null,null,null,null,null,null,null,null,null,null,null,null,null,null,null,null,null,null,null,null,null,"2025-04-15","15.04.2025"]
[null,null,null,null,null,null,null,null,null,null,null,null,null,null,null,null,null,null,null,null,null,null,null,null,null,null,null,null,null,null,null,null,null,null,null,null,null,null,null,null,null,null,null,null,null,null,null,null,null,null,null,null,"2025-04-16","16.04.2025"]
[null,null,null,null,null,null,null,null,null,null,null,null,null,null,null,null,null,null,null,null,null,null,null,null,null,null,null,null,null,null,null,null,null,null,null,null,null,null,null,null,null,null,null,null,null,null,null,null,null,null,null,null,"2025-04-17","17.04.2025"]
[null,null,null,null,null,null,null,null,null,null,null,null,null,null,null,null,null,null,null,null,null,null,null,null,null,null,null,null,null,null,null,null,null,null,null,null,null,null,null,null,null,null,null,null,null,null,null,null,null,null,null,null,"2025-04-18","18.04.2025"]
[null,null,null,null,null,null,null,null,null,null,null,null,null,null,null,null,null,null,null,null,null,null,null,null,null,null,null,null,null,null,null,null,null,null,null,null,null,null,null,null,null,null,null,null,null,null,null,null,null,null,null,null,"2025-04-19","19.04.2025"]
[null,null,null,null,null,null,null,null,null,null,null,null,null,null,null,null,null,null,null,null,null,null,null,null,null,null,null,null,null,null,null,null,null,null,null,null,null,null,null,null,null,null,null,null,null,null,null,null,null,null,null,null,"2025-04-20","20.04.2025"]
[null,null,null,null,null,null,null,null,null,null,null,null,null,null,null,null,null,null,null,null,null,null,null,null,null,null,null,null,null,null,null,null,null,null,null,null,null,null,null,null,null,null,null,null,null,null,null,null,null,null,null,null,"2025-04-21","21.04.2025"]
[null,null,null,null,null,null,null,null,null,null,null,null,null,null,null,null,null,null,null,null,null,null,null,null,null,null,null,null,null,null,null,null,null,null,null,null,null,null,null,null,null,null,null,null,null,null,null,null,null,null,null,null,"2025-04-22","22.04.2025"]
[null,null,null,null,null,null,null,null,null,null,null,null,null,null,null,null,null,null,null,null,null,null,null,null,null,null,null,null,null,null,null,null,null,null,null,null,null,null,null,null,null,null,null,null,null,null,null,null,null,null,null,null,"2025-04-23","23.04.2025"]
[null,null,null,null,null,null,null,null,null,null,null,null,null,null,null,null,null,null,null,null,null,null,null,null,null,null,null,null,null,null,null,null,null,null,null,null,null,null,null,null,null,null,null,null,null,null,null,null,null,null,null,null,"2025-04-24","24.04.2025"]
[null,null,null,null,null,null,null,null,null,null,null,null,null,null,null,null,null,null,null,null,null,null,null,null,null,null,null,null,null,null,null,null,null,null,null,null,null,null,null,null,null,null,null,null,null,null,null,null,null,null,null,null,"2025-04-25","25.04.2025"]
[null,null,null,null,null,null,null,null,null,null,null,null,null,null,null,null,null,null,null,null,null,null,null,null,null,null,null,null,null,null,null,null,null,null,null,null,null,null,null,null,null,null,null,null,null,null,null,null,null,null,null,null,"2025-04-26","26.04.2025"]
[null,null,null,null,null,null,null,null,null,null,null,null,null,null,null,null,null,null,null,null,null,null,null,null,null,null,null,null,null,null,null,null,null,null,null,null,null,null,null,null,null,null,null,null,null,null,null,null,null,null,null,null,"2025-04-27","27.04.2025"]
[null,null,null,null,null,null,null,null,null,null,null,null,null,null,null,null,null,null,null,null,null,null,null,null,null,null,null,null,null,null,null,null,null,null,null,null,null,null,null,null,null,null,null,null,null,null,null,null,null,null,null,null,"2025-04-28","28.04.2025"]
[null,null,null,null,null,null,null,null,null,null,null,null,null,null,null,null,null,null,null,null,null,null,null,null,null,null,null,null,null,null,null,null,null,null,null,null,null,null,null,null,null,null,null,null,null,null,null,null,null,null,null,null,"2025-04-29","29.04.2025"]
[null,null,null,null,null,null,null,null,null,null,null,null,null,null,null,null,null,null,null,null,null,null,null,null,null,null,null,null,null,null,null,null,null,null,null,null,null,null,null,null,null,null,null,null,null,null,null,null,null,null,null,null,"2025-04-30","30.04.2025"]
[null,null,null,null,null,null,null,null,null,null,null,null,null,null,null,null,null,null,null,null,null,null,null,null,null,null,null,null,null,null,null,null,null,null,null,null,null,null,null,null,null,null,null,null,null,null,null,null,null,null,null,null,"2025-05-01","01.05.2025"]
[null,null,null,null,null,null,null,null,null,null,null,null,null,null,null,null,null,null,null,null,null,null,null,null,null,null,null,null,null,null,null,null,null,null,null,null,null,null,null,null,null,null,null,null,null,null,null,null,null,null,null,null,"2025-05-02","02.05.2025"]
[null,null,null,null,null,null,null,null,null,null,null,null,null,null,null,null,null,null,null,null,null,null,null,null,null,null,null,null,null,null,null,null,null,null,null,null,null,null,null,null,null,null,null,null,null,null,null,null,null,null,null,null,"2025-05-03","03.05.2025"]
[null,null,null,null,null,null,null,null,null,null,null,null,null,null,null,null,null,null,null,null,null,null,null,null,null,null,null,null,null,null,null,null,null,null,null,null,null,null,null,null,null,null,null,null,null,null,null,null,null,null,null,null,"2025-05-04","04.05.2025"]
[null,null,null,null,null,null,null,null,null,null,null,null,null,null,null,null,null,null,null,null,null,null,null,null,null,null,null,null,null,null,null,null,null,null,null,null,null,null,null,null,null,null,null,null,null,null,null,null,null,null,null,null,"2025-05-05","05.05.2025"]
[null,null,null,null,null,null,null,null,null,null,null,null,null,null,null,null,null,null,null,null,null,null,null,null,null,null,null,null,null,null,null,null,null,null,null,null,null,null,null,null,null,null,null,null,null,null,null,null,null,null,null,null,"2025-05-06","06.05.2025"]
[null,null,null,null,null,null,null,null,null,null,null,null,null,null,null,null,null,null,null,null,null,null,null,null,null,null,null,null,null,null,null,null,null,null,null,null,null,null,null,null,null,null,null,null,null,null,null,null,null,null,null,null,"2025-05-07","07.05.2025"]
[null,null,null,null,null,null,null,null,null,null,null,null,null,null,null,null,null,null,null,null,null,null,null,null,null,null,null,null,null,null,null,null,null,null,null,null,null,null,null,null,null,null,null,null,null,null,null,null,null,null,null,null,"2025-05-08",{"$f":"TEXT(BA138,\"TT.MM.JJJJ\")","v":"08.05.2025"}]
[null,null,null,null,null,null,null,null,null,null,null,null,null,null,null,null,null,null,null,null,null,null,null,null,null,null,null,null,null,null,null,null,null,null,null,null,null,null,null,null,null,null,null,null,null,null,null,null,null,null,null,null,"2025-05-09","09.05.2025"]
[null,null,null,null,null,null,null,null,null,null,null,null,null,null,null,null,null,null,null,null,null,null,null,null,null,null,null,null,null,null,null,null,null,null,null,null,null,null,null,null,null,null,null,null,null,null,null,null,null,null,null,null,"2025-05-10","10.05.2025"]
[null,null,null,null,null,null,null,null,null,null,null,null,null,null,null,null,null,null,null,null,null,null,null,null,null,null,null,null,null,null,null,null,null,null,null,null,null,null,null,null,null,null,null,null,null,null,null,null,null,null,null,null,"2025-05-11","11.05.2025"]
[null,null,null,null,null,null,null,null,null,null,null,null,null,null,null,null,null,null,null,null,null,null,null,null,null,null,null,null,null,null,null,null,null,null,null,null,null,null,null,null,null,null,null,null,null,null,null,null,null,null,null,null,"2025-05-12","12.05.2025"]
[null,null,null,null,null,null,null,null,null,null,null,null,null,null,null,null,null,null,null,null,null,null,null,null,null,null,null,null,null,null,null,null,null,null,null,null,null,null,null,null,null,null,null,null,null,null,null,null,null,null,null,null,"2025-05-13","13.05.2025"]
[null,null,null,null,null,null,null,null,null,null,null,null,null,null,null,null,null,null,null,null,null,null,null,null,null,null,null,null,null,null,null,null,null,null,null,null,null,null,null,null,null,null,null,null,null,null,null,null,null,null,null,null,"2025-05-14","14.05.2025"]
[null,null,null,null,null,null,null,null,null,null,null,null,null,null,null,null,null,null,null,null,null,null,null,null,null,null,null,null,null,null,null,null,null,null,null,null,null,null,null,null,null,null,null,null,null,null,null,null,null,null,null,null,"2025-05-15","15.05.2025"]
[null,null,null,null,null,null,null,null,null,null,null,null,null,null,null,null,null,null,null,null,null,null,null,null,null,null,null,null,null,null,null,null,null,null,null,null,null,null,null,null,null,null,null,null,null,null,null,null,null,null,null,null,"2025-05-16","16.05.2025"]
[null,null,null,null,null,null,null,null,null,null,null,null,null,null,null,null,null,null,null,null,null,null,null,null,null,null,null,null,null,null,null,null,null,null,null,null,null,null,null,null,null,null,null,null,null,null,null,null,null,null,null,null,"2025-05-17","17.05.2025"]
[null,null,null,null,null,null,null,null,null,null,null,null,null,null,null,null,null,null,null,null,null,null,null,null,null,null,null,null,null,null,null,null,null,null,null,null,null,null,null,null,null,null,null,null,null,null,null,null,null,null,null,null,"2025-05-18","18.05.2025"]
[null,null,null,null,null,null,null,null,null,null,null,null,null,null,null,null,null,null,null,null,null,null,null,null,null,null,null,null,null,null,null,null,null,null,null,null,null,null,null,null,null,null,null,null,null,null,null,null,null,null,null,null,"2025-05-19","19.05.2025"]
[null,null,null,null,null,null,null,null,null,null,null,null,null,null,null,null,null,null,null,null,null,null,null,null,null,null,null,null,null,null,null,null,null,null,null,null,null,null,null,null,null,null,null,null,null,null,null,null,null,null,null,null,"2025-05-20","20.05.2025"]
[null,null,null,null,null,null,null,null,null,null,null,null,null,null,null,null,null,null,null,null,null,null,null,null,null,null,null,null,null,null,null,null,null,null,null,null,null,null,null,null,null,null,null,null,null,null,null,null,null,null,null,null,"2025-05-21","21.05.2025"]
[null,null,null,null,null,null,null,null,null,null,null,null,null,null,null,null,null,null,null,null,null,null,null,null,null,null,null,null,null,null,null,null,null,null,null,null,null,null,null,null,null,null,null,null,null,null,null,null,null,null,null,null,"2025-05-22","22.05.2025"]
[null,null,null,null,null,null,null,null,null,null,null,null,null,null,null,null,null,null,null,null,null,null,null,null,null,null,null,null,null,null,null,null,null,null,null,null,null,null,null,null,null,null,null,null,null,null,null,null,null,null,null,null,"2025-05-23","23.05.2025"]
[null,null,null,null,null,null,null,null,null,null,null,null,null,null,null,null,null,null,null,null,null,null,null,null,null,null,null,null,null,null,null,null,null,null,null,null,null,null,null,null,null,null,null,null,null,null,null,null,null,null,null,null,"2025-05-24","24.05.2025"]
[null,null,null,null,null,null,null,null,null,null,null,null,null,null,null,null,null,null,null,null,null,null,null,null,null,null,null,null,null,null,null,null,null,null,null,null,null,null,null,null,null,null,null,null,null,null,null,null,null,null,null,null,"2025-05-25","25.05.2025"]
[null,null,null,null,null,null,null,null,null,null,null,null,null,null,null,null,null,null,null,null,null,null,null,null,null,null,null,null,null,null,null,null,null,null,null,null,null,null,null,null,null,null,null,null,null,null,null,null,null,null,null,null,"2025-05-26","26.05.2025"]
[null,null,null,null,null,null,null,null,null,null,null,null,null,null,null,null,null,null,null,null,null,null,null,null,null,null,null,null,null,null,null,null,null,null,null,null,null,null,null,null,null,null,null,null,null,null,null,null,null,null,null,null,"2025-05-27","27.05.2025"]
[null,null,null,null,null,null,null,null,null,null,null,null,null,null,null,null,null,null,null,null,null,null,null,null,null,null,null,null,null,null,null,null,null,null,null,null,null,null,null,null,null,null,null,null,null,null,null,null,null,null,null,null,"2025-05-28","28.05.2025"]
[null,null,null,null,null,null,null,null,null,null,null,null,null,null,null,null,null,null,null,null,null,null,null,null,null,null,null,null,null,null,null,null,null,null,null,null,null,null,null,null,null,null,null,null,null,null,null,null,null,null,null,null,"2025-05-29","29.05.2025"]
[null,null,null,null,null,null,null,null,null,null,null,null,null,null,null,null,null,null,null,null,null,null,null,null,null,null,null,null,null,null,null,null,null,null,null,null,null,null,null,null,null,null,null,null,null,null,null,null,null,null,null,null,"2025-05-30","30.05.2025"]
[null,null,null,null,null,null,null,null,null,null,null,null,null,null,null,null,null,null,null,null,null,null,null,null,null,null,null,null,null,null,null,null,null,null,null,null,null,null,null,null,null,null,null,null,null,null,null,null,null,null,null,null,"2025-05-31","31.05.2025"]
[null,null,null,null,null,null,null,null,null,null,null,null,null,null,null,null,null,null,null,null,null,null,null,null,null,null,null,null,null,null,null,null,null,null,null,null,null,null,null,null,null,null,null,null,null,null,null,null,null,null,null,null,"2025-06-01","01.06.2025"]
[null,null,null,null,null,null,null,null,null,null,null,null,null,null,null,null,null,null,null,null,null,null,null,null,null,null,null,null,null,null,null,null,null,null,null,null,null,null,null,null,null,null,null,null,null,null,null,null,null,null,null,null,"2025-06-02","02.06.2025"]
[null,null,null,null,null,null,null,null,null,null,null,null,null,null,null,null,null,null,null,null,null,null,null,null,null,null,null,null,null,null,null,null,null,null,null,null,null,null,null,null,null,null,null,null,null,null,null,null,null,null,null,null,"2025-06-03","03.06.2025"]
[null,null,null,null,null,null,null,null,null,null,null,null,null,null,null,null,null,null,null,null,null,null,null,null,null,null,null,null,null,null,null,null,null,null,null,null,null,null,null,null,null,null,null,null,null,null,null,null,null,null,null,null,"2025-06-04","04.06.2025"]
[null,null,null,null,null,null,null,null,null,null,null,null,null,null,null,null,null,null,null,null,null,null,null,null,null,null,null,null,null,null,null,null,null,null,null,null,null,null,null,null,null,null,null,null,null,null,null,null,null,null,null,null,"2025-06-05","05.06.2025"]
[null,null,null,null,null,null,null,null,null,null,null,null,null,null,null,null,null,null,null,null,null,null,null,null,null,null,null,null,null,null,null,null,null,null,null,null,null,null,null,null,null,null,null,null,null,null,null,null,null,null,null,null,"2025-06-06","06.06.2025"]
[null,null,null,null,null,null,null,null,null,null,null,null,null,null,null,null,null,null,null,null,null,null,null,null,null,null,null,null,null,null,null,null,null,null,null,null,null,null,null,null,null,null,null,null,null,null,null,null,null,null,null,null,"2025-06-07","07.06.2025"]
[null,null,null,null,null,null,null,null,null,null,null,null,null,null,null,null,null,null,null,null,null,null,null,null,null,null,null,null,null,null,null,null,null,null,null,null,null,null,null,null,null,null,null,null,null,null,null,null,null,null,null,null,"2025-06-08","08.06.2025"]
[null,null,null,null,null,null,null,null,null,null,null,null,null,null,null,null,null,null,null,null,null,null,null,null,null,null,null,null,null,null,null,null,null,null,null,null,null,null,null,null,null,null,null,null,null,null,null,null,null,null,null,null,"2025-06-09","09.06.2025"]
[null,null,null,null,null,null,null,null,null,null,null,null,null,null,null,null,null,null,null,null,null,null,null,null,null,null,null,null,null,null,null,null,null,null,null,null,null,null,null,null,null,null,null,null,null,null,null,null,null,null,null,null,"2025-06-10","10.06.2025"]
[null,null,null,null,null,null,null,null,null,null,null,null,null,null,null,null,null,null,null,null,null,null,null,null,null,null,null,null,null,null,null,null,null,null,null,null,null,null,null,null,null,null,null,null,null,null,null,null,null,null,null,null,"2025-06-11","11.06.2025"]
[null,null,null,null,null,null,null,null,null,null,null,null,null,null,null,null,null,null,null,null,null,null,null,null,null,null,null,null,null,null,null,null,null,null,null,null,null,null,null,null,null,null,null,null,null,null,null,null,null,null,null,null,"2025-06-12","12.06.2025"]
[null,null,null,null,null,null,null,null,null,null,null,null,null,null,null,null,null,null,null,null,null,null,null,null,null,null,null,null,null,null,null,null,null,null,null,null,null,null,null,null,null,null,null,null,null,null,null,null,null,null,null,null,"2025-06-13","13.06.2025"]
[null,null,null,null,null,null,null,null,null,null,null,null,null,null,null,null,null,null,null,null,null,null,null,null,null,null,null,null,null,null,null,null,null,null,null,null,null,null,null,null,null,null,null,null,null,null,null,null,null,null,null,null,"2025-06-14","14.06.2025"]
[null,null,null,null,null,null,null,null,null,null,null,null,null,null,null,null,null,null,null,null,null,null,null,null,null,null,null,null,null,null,null,null,null,null,null,null,null,null,null,null,null,null,null,null,null,null,null,null,null,null,null,null,"2025-06-15","15.06.2025"]
[null,null,null,null,null,null,null,null,null,null,null,null,null,null,null,null,null,null,null,null,null,null,null,null,null,null,null,null,null,null,null,null,null,null,null,null,null,null,null,null,null,null,null,null,null,null,null,null,null,null,null,null,"2025-06-16","16.06.2025"]
[null,null,null,null,null,null,null,null,null,null,null,null,null,null,null,null,null,null,null,null,null,null,null,null,null,null,null,null,null,null,null,null,null,null,null,null,null,null,null,null,null,null,null,null,null,null,null,null,null,null,null,null,"2025-06-17","17.06.2025"]
[null,null,null,null,null,null,null,null,null,null,null,null,null,null,null,null,null,null,null,null,null,null,null,null,null,null,null,null,null,null,null,null,null,null,null,null,null,null,null,null,null,null,null,null,null,null,null,null,null,null,null,null,"2025-06-18","18.06.2025"]
[null,null,null,null,null,null,null,null,null,null,null,null,null,null,null,null,null,null,null,null,null,null,null,null,null,null,null,null,null,null,null,null,null,null,null,null,null,null,null,null,null,null,null,null,null,null,null,null,null,null,null,null,"2025-06-19","19.06.2025"]
[null,null,null,null,null,null,null,null,null,null,null,null,null,null,null,null,null,null,null,null,null,null,null,null,null,null,null,null,null,null,null,null,null,null,null,null,null,null,null,null,null,null,null,null,null,null,null,null,null,null,null,null,"2025-06-20","20.06.2025"]
[null,null,null,null,null,null,null,null,null,null,null,null,null,null,null,null,null,null,null,null,null,null,null,null,null,null,null,null,null,null,null,null,null,null,null,null,null,null,null,null,null,null,null,null,null,null,null,null,null,null,null,null,"2025-06-21","21.06.2025"]
[null,null,null,null,null,null,null,null,null,null,null,null,null,null,null,null,null,null,null,null,null,null,null,null,null,null,null,null,null,null,null,null,null,null,null,null,null,null,null,null,null,null,null,null,null,null,null,null,null,null,null,null,"2025-06-22","22.06.2025"]
[null,null,null,null,null,null,null,null,null,null,null,null,null,null,null,null,null,null,null,null,null,null,null,null,null,null,null,null,null,null,null,null,null,null,null,null,null,null,null,null,null,null,null,null,null,null,null,null,null,null,null,null,"2025-06-23","23.06.2025"]
[null,null,null,null,null,null,null,null,null,null,null,null,null,null,null,null,null,null,null,null,null,null,null,null,null,null,null,null,null,null,null,null,null,null,null,null,null,null,null,null,null,null,null,null,null,null,null,null,null,null,null,null,"2025-06-24","24.06.2025"]
[null,null,null,null,null,null,null,null,null,null,null,null,null,null,null,null,null,null,null,null,null,null,null,null,null,null,null,null,null,null,null,null,null,null,null,null,null,null,null,null,null,null,null,null,null,null,null,null,null,null,null,null,"2025-06-25","25.06.2025"]
[null,null,null,null,null,null,null,null,null,null,null,null,null,null,null,null,null,null,null,null,null,null,null,null,null,null,null,null,null,null,null,null,null,null,null,null,null,null,null,null,null,null,null,null,null,null,null,null,null,null,null,null,"2025-06-26","26.06.2025"]
[null,null,null,null,null,null,null,null,null,null,null,null,null,null,null,null,null,null,null,null,null,null,null,null,null,null,null,null,null,null,null,null,null,null,null,null,null,null,null,null,null,null,null,null,null,null,null,null,null,null,null,null,"2025-06-27","27.06.2025"]
[null,null,null,null,null,null,null,null,null,null,null,null,null,null,null,null,null,null,null,null,null,null,null,null,null,null,null,null,null,null,null,null,null,null,null,null,null,null,null,null,null,null,null,null,null,null,null,null,null,null,null,null,"2025-06-28","28.06.2025"]
[null,null,null,null,null,null,null,null,null,null,null,null,null,null,null,null,null,null,null,null,null,null,null,null,null,null,null,null,null,null,null,null,null,null,null,null,null,null,null,null,null,null,null,null,null,null,null,null,null,null,null,null,"2025-06-29","29.06.2025"]
[null,null,null,null,null,null,null,null,null,null,null,null,null,null,null,null,null,null,null,null,null,null,null,null,null,null,null,null,null,null,null,null,null,null,null,null,null,null,null,null,null,null,null,null,null,null,null,null,null,null,null,null,"2025-06-30","30.06.2025"]
[null,null,null,null,null,null,null,null,null,null,null,null,null,null,null,null,null,null,null,null,null,null,null,null,null,null,null,null,null,null,null,null,null,null,null,null,null,null,null,null,null,null,null,null,null,null,null,null,null,null,null,null,"2025-07-01","01.07.2025"]
[null,null,null,null,null,null,null,null,null,null,null,null,null,null,null,null,null,null,null,null,null,null,null,null,null,null,null,null,null,null,null,null,null,null,null,null,null,null,null,null,null,null,null,null,null,null,null,null,null,null,null,null,"2025-07-02","02.07.2025"]
[null,null,null,null,null,null,null,null,null,null,null,null,null,null,null,null,null,null,null,null,null,null,null,null,null,null,null,null,null,null,null,null,null,null,null,null,null,null,null,null,null,null,null,null,null,null,null,null,null,null,null,null,"2025-07-03","03.07.2025"]
[null,null,null,null,null,null,null,null,null,null,null,null,null,null,null,null,null,null,null,null,null,null,null,null,null,null,null,null,null,null,null,null,null,null,null,null,null,null,null,null,null,null,null,null,null,null,null,null,null,null,null,null,"2025-07-04","04.07.2025"]
[null,null,null,null,null,null,null,null,null,null,null,null,null,null,null,null,null,null,null,null,null,null,null,null,null,null,null,null,null,null,null,null,null,null,null,null,null,null,null,null,null,null,null,null,null,null,null,null,null,null,null,null,"2025-07-05","05.07.2025"]
[null,null,null,null,null,null,null,null,null,null,null,null,null,null,null,null,null,null,null,null,null,null,null,null,null,null,null,null,null,null,null,null,null,null,null,null,null,null,null,null,null,null,null,null,null,null,null,null,null,null,null,null,"2025-07-06","06.07.2025"]
[null,null,null,null,null,null,null,null,null,null,null,null,null,null,null,null,null,null,null,null,null,null,null,null,null,null,null,null,null,null,null,null,null,null,null,null,null,null,null,null,null,null,null,null,null,null,null,null,null,null,null,null,"2025-07-07","07.07.2025"]
[null,null,null,null,null,null,null,null,null,null,null,null,null,null,null,null,null,null,null,null,null,null,null,null,null,null,null,null,null,null,null,null,null,null,null,null,null,null,null,null,null,null,null,null,null,null,null,null,null,null,null,null,"2025-07-08","08.07.2025"]
[null,null,null,null,null,null,null,null,null,null,null,null,null,null,null,null,null,null,null,null,null,null,null,null,null,null,null,null,null,null,null,null,null,null,null,null,null,null,null,null,null,null,null,null,null,null,null,null,null,null,null,null,"2025-07-09","09.07.2025"]
[null,null,null,null,null,null,null,null,null,null,null,null,null,null,null,null,null,null,null,null,null,null,null,null,null,null,null,null,null,null,null,null,null,null,null,null,null,null,null,null,null,null,null,null,null,null,null,null,null,null,null,null,"2025-07-10","10.07.2025"]
[null,null,null,null,null,null,null,null,null,null,null,null,null,null,null,null,null,null,null,null,null,null,null,null,null,null,null,null,null,null,null,null,null,null,null,null,null,null,null,null,null,null,null,null,null,null,null,null,null,null,null,null,"2025-07-11",{"$f":"TEXT(BA202,\"TT.MM.JJJJ\")","v":"11.07.2025"}]
[null,null,null,null,null,null,null,null,null,null,null,null,null,null,null,null,null,null,null,null,null,null,null,null,null,null,null,null,null,null,null,null,null,null,null,null,null,null,null,null,null,null,null,null,null,null,null,null,null,null,null,null,"2025-07-12","12.07.2025"]
[null,null,null,null,null,null,null,null,null,null,null,null,null,null,null,null,null,null,null,null,null,null,null,null,null,null,null,null,null,null,null,null,null,null,null,null,null,null,null,null,null,null,null,null,null,null,null,null,null,null,null,null,"2025-07-13","13.07.2025"]
[null,null,null,null,null,null,null,null,null,null,null,null,null,null,null,null,null,null,null,null,null,null,null,null,null,null,null,null,null,null,null,null,null,null,null,null,null,null,null,null,null,null,null,null,null,null,null,null,null,null,null,null,"2025-07-14","14.07.2025"]
[null,null,null,null,null,null,null,null,null,null,null,null,null,null,null,null,null,null,null,null,null,null,null,null,null,null,null,null,null,null,null,null,null,null,null,null,null,null,null,null,null,null,null,null,null,null,null,null,null,null,null,null,"2025-07-15","15.07.2025"]
[null,null,null,null,null,null,null,null,null,null,null,null,null,null,null,null,null,null,null,null,null,null,null,null,null,null,null,null,null,null,null,null,null,null,null,null,null,null,null,null,null,null,null,null,null,null,null,null,null,null,null,null,"2025-07-16","16.07.2025"]
[null,null,null,null,null,null,null,null,null,null,null,null,null,null,null,null,null,null,null,null,null,null,null,null,null,null,null,null,null,null,null,null,null,null,null,null,null,null,null,null,null,null,null,null,null,null,null,null,null,null,null,null,"2025-07-17","17.07.2025"]
[null,null,null,null,null,null,null,null,null,null,null,null,null,null,null,null,null,null,null,null,null,null,null,null,null,null,null,null,null,null,null,null,null,null,null,null,null,null,null,null,null,null,null,null,null,null,null,null,null,null,null,null,"2025-07-18","18.07.2025"]
[null,null,null,null,null,null,null,null,null,null,null,null,null,null,null,null,null,null,null,null,null,null,null,null,null,null,null,null,null,null,null,null,null,null,null,null,null,null,null,null,null,null,null,null,null,null,null,null,null,null,null,null,"2025-07-19","19.07.2025"]
[null,null,null,null,null,null,null,null,null,null,null,null,null,null,null,null,null,null,null,null,null,null,null,null,null,null,null,null,null,null,null,null,null,null,null,null,null,null,null,null,null,null,null,null,null,null,null,null,null,null,null,null,"2025-07-20","20.07.2025"]
[null,null,null,null,null,null,null,null,null,null,null,null,null,null,null,null,null,null,null,null,null,null,null,null,null,null,null,null,null,null,null,null,null,null,null,null,null,null,null,null,null,null,null,null,null,null,null,null,null,null,null,null,"2025-07-21","21.07.2025"]
[null,null,null,null,null,null,null,null,null,null,null,null,null,null,null,null,null,null,null,null,null,null,null,null,null,null,null,null,null,null,null,null,null,null,null,null,null,null,null,null,null,null,null,null,null,null,null,null,null,null,null,null,"2025-07-22","22.07.2025"]
[null,null,null,null,null,null,null,null,null,null,null,null,null,null,null,null,null,null,null,null,null,null,null,null,null,null,null,null,null,null,null,null,null,null,null,null,null,null,null,null,null,null,null,null,null,null,null,null,null,null,null,null,"2025-07-23","23.07.2025"]
[null,null,null,null,null,null,null,null,null,null,null,null,null,null,null,null,null,null,null,null,null,null,null,null,null,null,null,null,null,null,null,null,null,null,null,null,null,null,null,null,null,null,null,null,null,null,null,null,null,null,null,null,"2025-07-24","24.07.2025"]
[null,null,null,null,null,null,null,null,null,null,null,null,null,null,null,null,null,null,null,null,null,null,null,null,null,null,null,null,null,null,null,null,null,null,null,null,null,null,null,null,null,null,null,null,null,null,null,null,null,null,null,null,"2025-07-25","25.07.2025"]
[null,null,null,null,null,null,null,null,null,null,null,null,null,null,null,null,null,null,null,null,null,null,null,null,null,null,null,null,null,null,null,null,null,null,null,null,null,null,null,null,null,null,null,null,null,null,null,null,null,null,null,null,"2025-07-26","26.07.2025"]
[null,null,null,null,null,null,null,null,null,null,null,null,null,null,null,null,null,null,null,null,null,null,null,null,null,null,null,null,null,null,null,null,null,null,null,null,null,null,null,null,null,null,null,null,null,null,null,null,null,null,null,null,"2025-07-27","27.07.2025"]
[null,null,null,null,null,null,null,null,null,null,null,null,null,null,null,null,null,null,null,null,null,null,null,null,null,null,null,null,null,null,null,null,null,null,null,null,null,null,null,null,null,null,null,null,null,null,null,null,null,null,null,null,"2025-07-28","28.07.2025"]
[null,null,null,null,null,null,null,null,null,null,null,null,null,null,null,null,null,null,null,null,null,null,null,null,null,null,null,null,null,null,null,null,null,null,null,null,null,null,null,null,null,null,null,null,null,null,null,null,null,null,null,null,"2025-07-29","29.07.2025"]
[null,null,null,null,null,null,null,null,null,null,null,null,null,null,null,null,null,null,null,null,null,null,null,null,null,null,null,null,null,null,null,null,null,null,null,null,null,null,null,null,null,null,null,null,null,null,null,null,null,null,null,null,"2025-07-30","30.07.2025"]
[null,null,null,null,null,null,null,null,null,null,null,null,null,null,null,null,null,null,null,null,null,null,null,null,null,null,null,null,null,null,null,null,null,null,null,null,null,null,null,null,null,null,null,null,null,null,null,null,null,null,null,null,"2025-07-31","31.07.2025"]
[null,null,null,null,null,null,null,null,null,null,null,null,null,null,null,null,null,null,null,null,null,null,null,null,null,null,null,null,null,null,null,null,null,null,null,null,null,null,null,null,null,null,null,null,null,null,null,null,null,null,null,null,"2025-08-01","01.08.2025"]
[null,null,null,null,null,null,null,null,null,null,null,null,null,null,null,null,null,null,null,null,null,null,null,null,null,null,null,null,null,null,null,null,null,null,null,null,null,null,null,null,null,null,null,null,null,null,null,null,null,null,null,null,"2025-08-02","02.08.2025"]
[null,null,null,null,null,null,null,null,null,null,null,null,null,null,null,null,null,null,null,null,null,null,null,null,null,null,null,null,null,null,null,null,null,null,null,null,null,null,null,null,null,null,null,null,null,null,null,null,null,null,null,null,"2025-08-03","03.08.2025"]
[null,null,null,null,null,null,null,null,null,null,null,null,null,null,null,null,null,null,null,null,null,null,null,null,null,null,null,null,null,null,null,null,null,null,null,null,null,null,null,null,null,null,null,null,null,null,null,null,null,null,null,null,"2025-08-04","04.08.2025"]
[null,null,null,null,null,null,null,null,null,null,null,null,null,null,null,null,null,null,null,null,null,null,null,null,null,null,null,null,null,null,null,null,null,null,null,null,null,null,null,null,null,null,null,null,null,null,null,null,null,null,null,null,"2025-08-05","05.08.2025"]
[null,null,null,null,null,null,null,null,null,null,null,null,null,null,null,null,null,null,null,null,null,null,null,null,null,null,null,null,null,null,null,null,null,null,null,null,null,null,null,null,null,null,null,null,null,null,null,null,null,null,null,null,"2025-08-06","06.08.2025"]
[null,null,null,null,null,null,null,null,null,null,null,null,null,null,null,null,null,null,null,null,null,null,null,null,null,null,null,null,null,null,null,null,null,null,null,null,null,null,null,null,null,null,null,null,null,null,null,null,null,null,null,null,"2025-08-07","07.08.2025"]
[null,null,null,null,null,null,null,null,null,null,null,null,null,null,null,null,null,null,null,null,null,null,null,null,null,null,null,null,null,null,null,null,null,null,null,null,null,null,null,null,null,null,null,null,null,null,null,null,null,null,null,null,"2025-08-08","08.08.2025"]
[null,null,null,null,null,null,null,null,null,null,null,null,null,null,null,null,null,null,null,null,null,null,null,null,null,null,null,null,null,null,null,null,null,null,null,null,null,null,null,null,null,null,null,null,null,null,null,null,null,null,null,null,"2025-08-09","09.08.2025"]
[null,null,null,null,null,null,null,null,null,null,null,null,null,null,null,null,null,null,null,null,null,null,null,null,null,null,null,null,null,null,null,null,null,null,null,null,null,null,null,null,null,null,null,null,null,null,null,null,null,null,null,null,"2025-08-10","10.08.2025"]
[null,null,null,null,null,null,null,null,null,null,null,null,null,null,null,null,null,null,null,null,null,null,null,null,null,null,null,null,null,null,null,null,null,null,null,null,null,null,null,null,null,null,null,null,null,null,null,null,null,null,null,null,"2025-08-11","11.08.2025"]
[null,null,null,null,null,null,null,null,null,null,null,null,null,null,null,null,null,null,null,null,null,null,null,null,null,null,null,null,null,null,null,null,null,null,null,null,null,null,null,null,null,null,null,null,null,null,null,null,null,null,null,null,"2025-08-12","12.08.2025"]
[null,null,null,null,null,null,null,null,null,null,null,null,null,null,null,null,null,null,null,null,null,null,null,null,null,null,null,null,null,null,null,null,null,null,null,null,null,null,null,null,null,null,null,null,null,null,null,null,null,null,null,null,"2025-08-13","13.08.2025"]
[null,null,null,null,null,null,null,null,null,null,null,null,null,null,null,null,null,null,null,null,null,null,null,null,null,null,null,null,null,null,null,null,null,null,null,null,null,null,null,null,null,null,null,null,null,null,null,null,null,null,null,null,"2025-08-14","14.08.2025"]
[null,null,null,null,null,null,null,null,null,null,null,null,null,null,null,null,null,null,null,null,null,null,null,null,null,null,null,null,null,null,null,null,null,null,null,null,null,null,null,null,null,null,null,null,null,null,null,null,null,null,null,null,"2025-08-15","15.08.2025"]
[null,null,null,null,null,null,null,null,null,null,null,null,null,null,null,null,null,null,null,null,null,null,null,null,null,null,null,null,null,null,null,null,null,null,null,null,null,null,null,null,null,null,null,null,null,null,null,null,null,null,null,null,"2025-08-16","16.08.2025"]
[null,null,null,null,null,null,null,null,null,null,null,null,null,null,null,null,null,null,null,null,null,null,null,null,null,null,null,null,null,null,null,null,null,null,null,null,null,null,null,null,null,null,null,null,null,null,null,null,null,null,null,null,"2025-08-17","17.08.2025"]
[null,null,null,null,null,null,null,null,null,null,null,null,null,null,null,null,null,null,null,null,null,null,null,null,null,null,null,null,null,null,null,null,null,null,null,null,null,null,null,null,null,null,null,null,null,null,null,null,null,null,null,null,"2025-08-18","18.08.2025"]
[null,null,null,null,null,null,null,null,null,null,null,null,null,null,null,null,null,null,null,null,null,null,null,null,null,null,null,null,null,null,null,null,null,null,null,null,null,null,null,null,null,null,null,null,null,null,null,null,null,null,null,null,"2025-08-19","19.08.2025"]
[null,null,null,null,null,null,null,null,null,null,null,null,null,null,null,null,null,null,null,null,null,null,null,null,null,null,null,null,null,null,null,null,null,null,null,null,null,null,null,null,null,null,null,null,null,null,null,null,null,null,null,null,"2025-08-20","20.08.2025"]
[null,null,null,null,null,null,null,null,null,null,null,null,null,null,null,null,null,null,null,null,null,null,null,null,null,null,null,null,null,null,null,null,null,null,null,null,null,null,null,null,null,null,null,null,null,null,null,null,null,null,null,null,"2025-08-21","21.08.2025"]
[null,null,null,null,null,null,null,null,null,null,null,null,null,null,null,null,null,null,null,null,null,null,null,null,null,null,null,null,null,null,null,null,null,null,null,null,null,null,null,null,null,null,null,null,null,null,null,null,null,null,null,null,"2025-08-22","22.08.2025"]
[null,null,null,null,null,null,null,null,null,null,null,null,null,null,null,null,null,null,null,null,null,null,null,null,null,null,null,null,null,null,null,null,null,null,null,null,null,null,null,null,null,null,null,null,null,null,null,null,null,null,null,null,"2025-08-23","23.08.2025"]
[null,null,null,null,null,null,null,null,null,null,null,null,null,null,null,null,null,null,null,null,null,null,null,null,null,null,null,null,null,null,null,null,null,null,null,null,null,null,null,null,null,null,null,null,null,null,null,null,null,null,null,null,"2025-08-24","24.08.2025"]
[null,null,null,null,null,null,null,null,null,null,null,null,null,null,null,null,null,null,null,null,null,null,null,null,null,null,null,null,null,null,null,null,null,null,null,null,null,null,null,null,null,null,null,null,null,null,null,null,null,null,null,null,"2025-08-25","25.08.2025"]
[null,null,null,null,null,null,null,null,null,null,null,null,null,null,null,null,null,null,null,null,null,null,null,null,null,null,null,null,null,null,null,null,null,null,null,null,null,null,null,null,null,null,null,null,null,null,null,null,null,null,null,null,"2025-08-26","26.08.2025"]
[null,null,null,null,null,null,null,null,null,null,null,null,null,null,null,null,null,null,null,null,null,null,null,null,null,null,null,null,null,null,null,null,null,null,null,null,null,null,null,null,null,null,null,null,null,null,null,null,null,null,null,null,"2025-08-27","27.08.2025"]
[null,null,null,null,null,null,null,null,null,null,null,null,null,null,null,null,null,null,null,null,null,null,null,null,null,null,null,null,null,null,null,null,null,null,null,null,null,null,null,null,null,null,null,null,null,null,null,null,null,null,null,null,"2025-08-28","28.08.2025"]
[null,null,null,null,null,null,null,null,null,null,null,null,null,null,null,null,null,null,null,null,null,null,null,null,null,null,null,null,null,null,null,null,null,null,null,null,null,null,null,null,null,null,null,null,null,null,null,null,null,null,null,null,"2025-08-29","29.08.2025"]
[null,null,null,null,null,null,null,null,null,null,null,null,null,null,null,null,null,null,null,null,null,null,null,null,null,null,null,null,null,null,null,null,null,null,null,null,null,null,null,null,null,null,null,null,null,null,null,null,null,null,null,null,"2025-08-30","30.08.2025"]
[null,null,null,null,null,null,null,null,null,null,null,null,null,null,null,null,null,null,null,null,null,null,null,null,null,null,null,null,null,null,null,null,null,null,null,null,null,null,null,null,null,null,null,null,null,null,null,null,null,null,null,null,"2025-08-31","31.08.2025"]
[null,null,null,null,null,null,null,null,null,null,null,null,null,null,null,null,null,null,null,null,null,null,null,null,null,null,null,null,null,null,null,null,null,null,null,null,null,null,null,null,null,null,null,null,null,null,null,null,null,null,null,null,"2025-09-01","01.09.2025"]
[null,null,null,null,null,null,null,null,null,null,null,null,null,null,null,null,null,null,null,null,null,null,null,null,null,null,null,null,null,null,null,null,null,null,null,null,null,null,null,null,null,null,null,null,null,null,null,null,null,null,null,null,"2025-09-02","02.09.2025"]
[null,null,null,null,null,null,null,null,null,null,null,null,null,null,null,null,null,null,null,null,null,null,null,null,null,null,null,null,null,null,null,null,null,null,null,null,null,null,null,null,null,null,null,null,null,null,null,null,null,null,null,null,"2025-09-03","03.09.2025"]
[null,null,null,null,null,null,null,null,null,null,null,null,null,null,null,null,null,null,null,null,null,null,null,null,null,null,null,null,null,null,null,null,null,null,null,null,null,null,null,null,null,null,null,null,null,null,null,null,null,null,null,null,"2025-09-04","04.09.2025"]
[null,null,null,null,null,null,null,null,null,null,null,null,null,null,null,null,null,null,null,null,null,null,null,null,null,null,null,null,null,null,null,null,null,null,null,null,null,null,null,null,null,null,null,null,null,null,null,null,null,null,null,null,"2025-09-05","05.09.2025"]
[null,null,null,null,null,null,null,null,null,null,null,null,null,null,null,null,null,null,null,null,null,null,null,null,null,null,null,null,null,null,null,null,null,null,null,null,null,null,null,null,null,null,null,null,null,null,null,null,null,null,null,null,"2025-09-06","06.09.2025"]
[null,null,null,null,null,null,null,null,null,null,null,null,null,null,null,null,null,null,null,null,null,null,null,null,null,null,null,null,null,null,null,null,null,null,null,null,null,null,null,null,null,null,null,null,null,null,null,null,null,null,null,null,"2025-09-07","07.09.2025"]
[null,null,null,null,null,null,null,null,null,null,null,null,null,null,null,null,null,null,null,null,null,null,null,null,null,null,null,null,null,null,null,null,null,null,null,null,null,null,null,null,null,null,null,null,null,null,null,null,null,null,null,null,"2025-09-08","08.09.2025"]
[null,null,null,null,null,null,null,null,null,null,null,null,null,null,null,null,null,null,null,null,null,null,null,null,null,null,null,null,null,null,null,null,null,null,null,null,null,null,null,null,null,null,null,null,null,null,null,null,null,null,null,null,"2025-09-09","09.09.2025"]
[null,null,null,null,null,null,null,null,null,null,null,null,null,null,null,null,null,null,null,null,null,null,null,null,null,null,null,null,null,null,null,null,null,null,null,null,null,null,null,null,null,null,null,null,null,null,null,null,null,null,null,null,"2025-09-10","10.09.2025"]
[null,null,null,null,null,null,null,null,null,null,null,null,null,null,null,null,null,null,null,null,null,null,null,null,null,null,null,null,null,null,null,null,null,null,null,null,null,null,null,null,null,null,null,null,null,null,null,null,null,null,null,null,"2025-09-11","11.09.2025"]
[null,null,null,null,null,null,null,null,null,null,null,null,null,null,null,null,null,null,null,null,null,null,null,null,null,null,null,null,null,null,null,null,null,null,null,null,null,null,null,null,null,null,null,null,null,null,null,null,null,null,null,null,"2025-09-12","12.09.2025"]
[null,null,null,null,null,null,null,null,null,null,null,null,null,null,null,null,null,null,null,null,null,null,null,null,null,null,null,null,null,null,null,null,null,null,null,null,null,null,null,null,null,null,null,null,null,null,null,null,null,null,null,null,"2025-09-13",{"$f":"TEXT(BA266,\"TT.MM.JJJJ\")","v":"13.09.2025"}]
[null,null,null,null,null,null,null,null,null,null,null,null,null,null,null,null,null,null,null,null,null,null,null,null,null,null,null,null,null,null,null,null,null,null,null,null,null,null,null,null,null,null,null,null,null,null,null,null,null,null,null,null,"2025-09-14","14.09.2025"]
[null,null,null,null,null,null,null,null,null,null,null,null,null,null,null,null,null,null,null,null,null,null,null,null,null,null,null,null,null,null,null,null,null,null,null,null,null,null,null,null,null,null,null,null,null,null,null,null,null,null,null,null,"2025-09-15","15.09.2025"]
[null,null,null,null,null,null,null,null,null,null,null,null,null,null,null,null,null,null,null,null,null,null,null,null,null,null,null,null,null,null,null,null,null,null,null,null,null,null,null,null,null,null,null,null,null,null,null,null,null,null,null,null,"2025-09-16","16.09.2025"]
[null,null,null,null,null,null,null,null,null,null,null,null,null,null,null,null,null,null,null,null,null,null,null,null,null,null,null,null,null,null,null,null,null,null,null,null,null,null,null,null,null,null,null,null,null,null,null,null,null,null,null,null,"2025-09-17","17.09.2025"]
[null,null,null,null,null,null,null,null,null,null,null,null,null,null,null,null,null,null,null,null,null,null,null,null,null,null,null,null,null,null,null,null,null,null,null,null,null,null,null,null,null,null,null,null,null,null,null,null,null,null,null,null,"2025-09-18","18.09.2025"]
[null,null,null,null,null,null,null,null,null,null,null,null,null,null,null,null,null,null,null,null,null,null,null,null,null,null,null,null,null,null,null,null,null,null,null,null,null,null,null,null,null,null,null,null,null,null,null,null,null,null,null,null,"2025-09-19","19.09.2025"]
[null,null,null,null,null,null,null,null,null,null,null,null,null,null,null,null,null,null,null,null,null,null,null,null,null,null,null,null,null,null,null,null,null,null,null,null,null,null,null,null,null,null,null,null,null,null,null,null,null,null,null,null,"2025-09-20","20.09.2025"]
[null,null,null,null,null,null,null,null,null,null,null,null,null,null,null,null,null,null,null,null,null,null,null,null,null,null,null,null,null,null,null,null,null,null,null,null,null,null,null,null,null,null,null,null,null,null,null,null,null,null,null,null,"2025-09-21","21.09.2025"]
[null,null,null,null,null,null,null,null,null,null,null,null,null,null,null,null,null,null,null,null,null,null,null,null,null,null,null,null,null,null,null,null,null,null,null,null,null,null,null,null,null,null,null,null,null,null,null,null,null,null,null,null,"2025-09-22","22.09.2025"]
[null,null,null,null,null,null,null,null,null,null,null,null,null,null,null,null,null,null,null,null,null,null,null,null,null,null,null,null,null,null,null,null,null,null,null,null,null,null,null,null,null,null,null,null,null,null,null,null,null,null,null,null,"2025-09-23","23.09.2025"]
[null,null,null,null,null,null,null,null,null,null,null,null,null,null,null,null,null,null,null,null,null,null,null,null,null,null,null,null,null,null,null,null,null,null,null,null,null,null,null,null,null,null,null,null,null,null,null,null,null,null,null,null,"2025-09-24","24.09.2025"]
[null,null,null,null,null,null,null,null,null,null,null,null,null,null,null,null,null,null,null,null,null,null,null,null,null,null,null,null,null,null,null,null,null,null,null,null,null,null,null,null,null,null,null,null,null,null,null,null,null,null,null,null,"2025-09-25","25.09.2025"]
[null,null,null,null,null,null,null,null,null,null,null,null,null,null,null,null,null,null,null,null,null,null,null,null,null,null,null,null,null,null,null,null,null,null,null,null,null,null,null,null,null,null,null,null,null,null,null,null,null,null,null,null,"2025-09-26","26.09.2025"]
[null,null,null,null,null,null,null,null,null,null,null,null,null,null,null,null,null,null,null,null,null,null,null,null,null,null,null,null,null,null,null,null,null,null,null,null,null,null,null,null,null,null,null,null,null,null,null,null,null,null,null,null,"2025-09-27","27.09.2025"]
[null,null,null,null,null,null,null,null,null,null,null,null,null,null,null,null,null,null,null,null,null,null,null,null,null,null,null,null,null,null,null,null,null,null,null,null,null,null,null,null,null,null,null,null,null,null,null,null,null,null,null,null,"2025-09-28","28.09.2025"]
[null,null,null,null,null,null,null,null,null,null,null,null,null,null,null,null,null,null,null,null,null,null,null,null,null,null,null,null,null,null,null,null,null,null,null,null,null,null,null,null,null,null,null,null,null,null,null,null,null,null,null,null,"2025-09-29","29.09.2025"]
[null,null,null,null,null,null,null,null,null,null,null,null,null,null,null,null,null,null,null,null,null,null,null,null,null,null,null,null,null,null,null,null,null,null,null,null,null,null,null,null,null,null,null,null,null,null,null,null,null,null,null,null,"2025-09-30","30.09.2025"]
[null,null,null,null,null,null,null,null,null,null,null,null,null,null,null,null,null,null,null,null,null,null,null,null,null,null,null,null,null,null,null,null,null,null,null,null,null,null,null,null,null,null,null,null,null,null,null,null,null,null,null,null,"2025-10-01","01.10.2025"]
[null,null,null,null,null,null,null,null,null,null,null,null,null,null,null,null,null,null,null,null,null,null,null,null,null,null,null,null,null,null,null,null,null,null,null,null,null,null,null,null,null,null,null,null,null,null,null,null,null,null,null,null,"2025-10-02","02.10.2025"]
[null,null,null,null,null,null,null,null,null,null,null,null,null,null,null,null,null,null,null,null,null,null,null,null,null,null,null,null,null,null,null,null,null,null,null,null,null,null,null,null,null,null,null,null,null,null,null,null,null,null,null,null,"2025-10-03","03.10.2025"]
[null,null,null,null,null,null,null,null,null,null,null,null,null,null,null,null,null,null,null,null,null,null,null,null,null,null,null,null,null,null,null,null,null,null,null,null,null,null,null,null,null,null,null,null,null,null,null,null,null,null,null,null,"2025-10-04","04.10.2025"]
[null,null,null,null,null,null,null,null,null,null,null,null,null,null,null,null,null,null,null,null,null,null,null,null,null,null,null,null,null,null,null,null,null,null,null,null,null,null,null,null,null,null,null,null,null,null,null,null,null,null,null,null,"2025-10-05","05.10.2025"]
[null,null,null,null,null,null,null,null,null,null,null,null,null,null,null,null,null,null,null,null,null,null,null,null,null,null,null,null,null,null,null,null,null,null,null,null,null,null,null,null,null,null,null,null,null,null,null,null,null,null,null,null,"2025-10-06","06.10.2025"]
[null,null,null,null,null,null,null,null,null,null,null,null,null,null,null,null,null,null,null,null,null,null,null,null,null,null,null,null,null,null,null,null,null,null,null,null,null,null,null,null,null,null,null,null,null,null,null,null,null,null,null,null,"2025-10-07","07.10.2025"]
[null,null,null,null,null,null,null,null,null,null,null,null,null,null,null,null,null,null,null,null,null,null,null,null,null,null,null,null,null,null,null,null,null,null,null,null,null,null,null,null,null,null,null,null,null,null,null,null,null,null,null,null,"2025-10-08","08.10.2025"]
[null,null,null,null,null,null,null,null,null,null,null,null,null,null,null,null,null,null,null,null,null,null,null,null,null,null,null,null,null,null,null,null,null,null,null,null,null,null,null,null,null,null,null,null,null,null,null,null,null,null,null,null,"2025-10-09","09.10.2025"]
[null,null,null,null,null,null,null,null,null,null,null,null,null,null,null,null,null,null,null,null,null,null,null,null,null,null,null,null,null,null,null,null,null,null,null,null,null,null,null,null,null,null,null,null,null,null,null,null,null,null,null,null,"2025-10-10","10.10.2025"]
[null,null,null,null,null,null,null,null,null,null,null,null,null,null,null,null,null,null,null,null,null,null,null,null,null,null,null,null,null,null,null,null,null,null,null,null,null,null,null,null,null,null,null,null,null,null,null,null,null,null,null,null,"2025-10-11","11.10.2025"]
[null,null,null,null,null,null,null,null,null,null,null,null,null,null,null,null,null,null,null,null,null,null,null,null,null,null,null,null,null,null,null,null,null,null,null,null,null,null,null,null,null,null,null,null,null,null,null,null,null,null,null,null,"2025-10-12","12.10.2025"]
[null,null,null,null,null,null,null,null,null,null,null,null,null,null,null,null,null,null,null,null,null,null,null,null,null,null,null,null,null,null,null,null,null,null,null,null,null,null,null,null,null,null,null,null,null,null,null,null,null,null,null,null,"2025-10-13","13.10.2025"]
[null,null,null,null,null,null,null,null,null,null,null,null,null,null,null,null,null,null,null,null,null,null,null,null,null,null,null,null,null,null,null,null,null,null,null,null,null,null,null,null,null,null,null,null,null,null,null,null,null,null,null,null,"2025-10-14","14.10.2025"]
[null,null,null,null,null,null,null,null,null,null,null,null,null,null,null,null,null,null,null,null,null,null,null,null,null,null,null,null,null,null,null,null,null,null,null,null,null,null,null,null,null,null,null,null,null,null,null,null,null,null,null,null,"2025-10-15","15.10.2025"]
[null,null,null,null,null,null,null,null,null,null,null,null,null,null,null,null,null,null,null,null,null,null,null,null,null,null,null,null,null,null,null,null,null,null,null,null,null,null,null,null,null,null,null,null,null,null,null,null,null,null,null,null,"2025-10-16","16.10.2025"]
[null,null,null,null,null,null,null,null,null,null,null,null,null,null,null,null,null,null,null,null,null,null,null,null,null,null,null,null,null,null,null,null,null,null,null,null,null,null,null,null,null,null,null,null,null,null,null,null,null,null,null,null,"2025-10-17","17.10.2025"]
[null,null,null,null,null,null,null,null,null,null,null,null,null,null,null,null,null,null,null,null,null,null,null,null,null,null,null,null,null,null,null,null,null,null,null,null,null,null,null,null,null,null,null,null,null,null,null,null,null,null,null,null,"2025-10-18","18.10.2025"]
[null,null,null,null,null,null,null,null,null,null,null,null,null,null,null,null,null,null,null,null,null,null,null,null,null,null,null,null,null,null,null,null,null,null,null,null,null,null,null,null,null,null,null,null,null,null,null,null,null,null,null,null,"2025-10-19","19.10.2025"]
[null,null,null,null,null,null,null,null,null,null,null,null,null,null,null,null,null,null,null,null,null,null,null,null,null,null,null,null,null,null,null,null,null,null,null,null,null,null,null,null,null,null,null,null,null,null,null,null,null,null,null,null,"2025-10-20","20.10.2025"]
[null,null,null,null,null,null,null,null,null,null,null,null,null,null,null,null,null,null,null,null,null,null,null,null,null,null,null,null,null,null,null,null,null,null,null,null,null,null,null,null,null,null,null,null,null,null,null,null,null,null,null,null,"2025-10-21","21.10.2025"]
[null,null,null,null,null,null,null,null,null,null,null,null,null,null,null,null,null,null,null,null,null,null,null,null,null,null,null,null,null,null,null,null,null,null,null,null,null,null,null,null,null,null,null,null,null,null,null,null,null,null,null,null,"2025-10-22","22.10.2025"]
[null,null,null,null,null,null,null,null,null,null,null,null,null,null,null,null,null,null,null,null,null,null,null,null,null,null,null,null,null,null,null,null,null,null,null,null,null,null,null,null,null,null,null,null,null,null,null,null,null,null,null,null,"2025-10-23","23.10.2025"]
[null,null,null,null,null,null,null,null,null,null,null,null,null,null,null,null,null,null,null,null,null,null,null,null,null,null,null,null,null,null,null,null,null,null,null,null,null,null,null,null,null,null,null,null,null,null,null,null,null,null,null,null,"2025-10-24","24.10.2025"]
[null,null,null,null,null,null,null,null,null,null,null,null,null,null,null,null,null,null,null,null,null,null,null,null,null,null,null,null,null,null,null,null,null,null,null,null,null,null,null,null,null,null,null,null,null,null,null,null,null,null,null,null,"2025-10-25","25.10.2025"]
[null,null,null,null,null,null,null,null,null,null,null,null,null,null,null,null,null,null,null,null,null,null,null,null,null,null,null,null,null,null,null,null,null,null,null,null,null,null,null,null,null,null,null,null,null,null,null,null,null,null,null,null,"2025-10-26","26.10.2025"]
[null,null,null,null,null,null,null,null,null,null,null,null,null,null,null,null,null,null,null,null,null,null,null,null,null,null,null,null,null,null,null,null,null,null,null,null,null,null,null,null,null,null,null,null,null,null,null,null,null,null,null,null,"2025-10-27","27.10.2025"]
[null,null,null,null,null,null,null,null,null,null,null,null,null,null,null,null,null,null,null,null,null,null,null,null,null,null,null,null,null,null,null,null,null,null,null,null,null,null,null,null,null,null,null,null,null,null,null,null,null,null,null,null,"2025-10-28","28.10.2025"]
[null,null,null,null,null,null,null,null,null,null,null,null,null,null,null,null,null,null,null,null,null,null,null,null,null,null,null,null,null,null,null,null,null,null,null,null,null,null,null,null,null,null,null,null,null,null,null,null,null,null,null,null,"2025-10-29","29.10.2025"]
[null,null,null,null,null,null,null,null,null,null,null,null,null,null,null,null,null,null,null,null,null,null,null,null,null,null,null,null,null,null,null,null,null,null,null,null,null,null,null,null,null,null,null,null,null,null,null,null,null,null,null,null,"2025-10-30","30.10.2025"]
[null,null,null,null,null,null,null,null,null,null,null,null,null,null,null,null,null,null,null,null,null,null,null,null,null,null,null,null,null,null,null,null,null,null,null,null,null,null,null,null,null,null,null,null,null,null,null,null,null,null,null,null,"2025-10-31","31.10.2025"]
[null,null,null,null,null,null,null,null,null,null,null,null,null,null,null,null,null,null,null,null,null,null,null,null,null,null,null,null,null,null,null,null,null,null,null,null,null,null,null,null,null,null,null,null,null,null,null,null,null,null,null,null,"2025-11-01","01.11.2025"]
[null,null,null,null,null,null,null,null,null,null,null,null,null,null,null,null,null,null,null,null,null,null,null,null,null,null,null,null,null,null,null,null,null,null,null,null,null,null,null,null,null,null,null,null,null,null,null,null,null,null,null,null,"2025-11-02","02.11.2025"]
[null,null,null,null,null,null,null,null,null,null,null,null,null,null,null,null,null,null,null,null,null,null,null,null,null,null,null,null,null,null,null,null,null,null,null,null,null,null,null,null,null,null,null,null,null,null,null,null,null,null,null,null,"2025-11-03","03.11.2025"]
[null,null,null,null,null,null,null,null,null,null,null,null,null,null,null,null,null,null,null,null,null,null,null,null,null,null,null,null,null,null,null,null,null,null,null,null,null,null,null,null,null,null,null,null,null,null,null,null,null,null,null,null,"2025-11-04","04.11.2025"]
[null,null,null,null,null,null,null,null,null,null,null,null,null,null,null,null,null,null,null,null,null,null,null,null,null,null,null,null,null,null,null,null,null,null,null,null,null,null,null,null,null,null,null,null,null,null,null,null,null,null,null,null,"2025-11-05","05.11.2025"]
[null,null,null,null,null,null,null,null,null,null,null,null,null,null,null,null,null,null,null,null,null,null,null,null,null,null,null,null,null,null,null,null,null,null,null,null,null,null,null,null,null,null,null,null,null,null,null,null,null,null,null,null,"2025-11-06","06.11.2025"]
[null,null,null,null,null,null,null,null,null,null,null,null,null,null,null,null,null,null,null,null,null,null,null,null,null,null,null,null,null,null,null,null,null,null,null,null,null,null,null,null,null,null,null,null,null,null,null,null,null,null,null,null,"2025-11-07","07.11.2025"]
[null,null,null,null,null,null,null,null,null,null,null,null,null,null,null,null,null,null,null,null,null,null,null,null,null,null,null,null,null,null,null,null,null,null,null,null,null,null,null,null,null,null,null,null,null,null,null,null,null,null,null,null,"2025-11-08","08.11.2025"]
[null,null,null,null,null,null,null,null,null,null,null,null,null,null,null,null,null,null,null,null,null,null,null,null,null,null,null,null,null,null,null,null,null,null,null,null,null,null,null,null,null,null,null,null,null,null,null,null,null,null,null,null,"2025-11-09","09.11.2025"]
[null,null,null,null,null,null,null,null,null,null,null,null,null,null,null,null,null,null,null,null,null,null,null,null,null,null,null,null,null,null,null,null,null,null,null,null,null,null,null,null,null,null,null,null,null,null,null,null,null,null,null,null,"2025-11-10","10.11.2025"]
[null,null,null,null,null,null,null,null,null,null,null,null,null,null,null,null,null,null,null,null,null,null,null,null,null,null,null,null,null,null,null,null,null,null,null,null,null,null,null,null,null,null,null,null,null,null,null,null,null,null,null,null,"2025-11-11","11.11.2025"]
[null,null,null,null,null,null,null,null,null,null,null,null,null,null,null,null,null,null,null,null,null,null,null,null,null,null,null,null,null,null,null,null,null,null,null,null,null,null,null,null,null,null,null,null,null,null,null,null,null,null,null,null,"2025-11-12","12.11.2025"]
[null,null,null,null,null,null,null,null,null,null,null,null,null,null,null,null,null,null,null,null,null,null,null,null,null,null,null,null,null,null,null,null,null,null,null,null,null,null,null,null,null,null,null,null,null,null,null,null,null,null,null,null,"2025-11-13","13.11.2025"]
[null,null,null,null,null,null,null,null,null,null,null,null,null,null,null,null,null,null,null,null,null,null,null,null,null,null,null,null,null,null,null,null,null,null,null,null,null,null,null,null,null,null,null,null,null,null,null,null,null,null,null,null,"2025-11-14","14.11.2025"]
[null,null,null,null,null,null,null,null,null,null,null,null,null,null,null,null,null,null,null,null,null,null,null,null,null,null,null,null,null,null,null,null,null,null,null,null,null,null,null,null,null,null,null,null,null,null,null,null,null,null,null,null,"2025-11-15","15.11.2025"]
[null,null,null,null,null,null,null,null,null,null,null,null,null,null,null,null,null,null,null,null,null,null,null,null,null,null,null,null,null,null,null,null,null,null,null,null,null,null,null,null,null,null,null,null,null,null,null,null,null,null,null,null,"2025-11-16",{"$f":"TEXT(BA330,\"TT.MM.JJJJ\")","v":"16.11.2025"}]
[null,null,null,null,null,null,null,null,null,null,null,null,null,null,null,null,null,null,null,null,null,null,null,null,null,null,null,null,null,null,null,null,null,null,null,null,null,null,null,null,null,null,null,null,null,null,null,null,null,null,null,null,"2025-11-17","17.11.2025"]
[null,null,null,null,null,null,null,null,null,null,null,null,null,null,null,null,null,null,null,null,null,null,null,null,null,null,null,null,null,null,null,null,null,null,null,null,null,null,null,null,null,null,null,null,null,null,null,null,null,null,null,null,"2025-11-18","18.11.2025"]
[null,null,null,null,null,null,null,null,null,null,null,null,null,null,null,null,null,null,null,null,null,null,null,null,null,null,null,null,null,null,null,null,null,null,null,null,null,null,null,null,null,null,null,null,null,null,null,null,null,null,null,null,"2025-11-19","19.11.2025"]
[null,null,null,null,null,null,null,null,null,null,null,null,null,null,null,null,null,null,null,null,null,null,null,null,null,null,null,null,null,null,null,null,null,null,null,null,null,null,null,null,null,null,null,null,null,null,null,null,null,null,null,null,"2025-11-20","20.11.2025"]
[null,null,null,null,null,null,null,null,null,null,null,null,null,null,null,null,null,null,null,null,null,null,null,null,null,null,null,null,null,null,null,null,null,null,null,null,null,null,null,null,null,null,null,null,null,null,null,null,null,null,null,null,"2025-11-21","21.11.2025"]
[null,null,null,null,null,null,null,null,null,null,null,null,null,null,null,null,null,null,null,null,null,null,null,null,null,null,null,null,null,null,null,null,null,null,null,null,null,null,null,null,null,null,null,null,null,null,null,null,null,null,null,null,"2025-11-22","22.11.2025"]
[null,null,null,null,null,null,null,null,null,null,null,null,null,null,null,null,null,null,null,null,null,null,null,null,null,null,null,null,null,null,null,null,null,null,null,null,null,null,null,null,null,null,null,null,null,null,null,null,null,null,null,null,"2025-11-23","23.11.2025"]
[null,null,null,null,null,null,null,null,null,null,null,null,null,null,null,null,null,null,null,null,null,null,null,null,null,null,null,null,null,null,null,null,null,null,null,null,null,null,null,null,null,null,null,null,null,null,null,null,null,null,null,null,"2025-11-24","24.11.2025"]
[null,null,null,null,null,null,null,null,null,null,null,null,null,null,null,null,null,null,null,null,null,null,null,null,null,null,null,null,null,null,null,null,null,null,null,null,null,null,null,null,null,null,null,null,null,null,null,null,null,null,null,null,"2025-11-25","25.11.2025"]
[null,null,null,null,null,null,null,null,null,null,null,null,null,null,null,null,null,null,null,null,null,null,null,null,null,null,null,null,null,null,null,null,null,null,null,null,null,null,null,null,null,null,null,null,null,null,null,null,null,null,null,null,"2025-11-26","26.11.2025"]
[null,null,null,null,null,null,null,null,null,null,null,null,null,null,null,null,null,null,null,null,null,null,null,null,null,null,null,null,null,null,null,null,null,null,null,null,null,null,null,null,null,null,null,null,null,null,null,null,null,null,null,null,"2025-11-27","27.11.2025"]
[null,null,null,null,null,null,null,null,null,null,null,null,null,null,null,null,null,null,null,null,null,null,null,null,null,null,null,null,null,null,null,null,null,null,null,null,null,null,null,null,null,null,null,null,null,null,null,null,null,null,null,null,"2025-11-28","28.11.2025"]
[null,null,null,null,null,null,null,null,null,null,null,null,null,null,null,null,null,null,null,null,null,null,null,null,null,null,null,null,null,null,null,null,null,null,null,null,null,null,null,null,null,null,null,null,null,null,null,null,null,null,null,null,"2025-11-29","29.11.2025"]
[null,null,null,null,null,null,null,null,null,null,null,null,null,null,null,null,null,null,null,null,null,null,null,null,null,null,null,null,null,null,null,null,null,null,null,null,null,null,null,null,null,null,null,null,null,null,null,null,null,null,null,null,"2025-11-30","30.11.2025"]
[null,null,null,null,null,null,null,null,null,null,null,null,null,null,null,null,null,null,null,null,null,null,null,null,null,null,null,null,null,null,null,null,null,null,null,null,null,null,null,null,null,null,null,null,null,null,null,null,null,null,null,null,"2025-12-01","01.12.2025"]
[null,null,null,null,null,null,null,null,null,null,null,null,null,null,null,null,null,null,null,null,null,null,null,null,null,null,null,null,null,null,null,null,null,null,null,null,null,null,null,null,null,null,null,null,null,null,null,null,null,null,null,null,"2025-12-02","02.12.2025"]
[null,null,null,null,null,null,null,null,null,null,null,null,null,null,null,null,null,null,null,null,null,null,null,null,null,null,null,null,null,null,null,null,null,null,null,null,null,null,null,null,null,null,null,null,null,null,null,null,null,null,null,null,"2025-12-03","03.12.2025"]
[null,null,null,null,null,null,null,null,null,null,null,null,null,null,null,null,null,null,null,null,null,null,null,null,null,null,null,null,null,null,null,null,null,null,null,null,null,null,null,null,null,null,null,null,null,null,null,null,null,null,null,null,"2025-12-04","04.12.2025"]
[null,null,null,null,null,null,null,null,null,null,null,null,null,null,null,null,null,null,null,null,null,null,null,null,null,null,null,null,null,null,null,null,null,null,null,null,null,null,null,null,null,null,null,null,null,null,null,null,null,null,null,null,"2025-12-05","05.12.2025"]
[null,null,null,null,null,null,null,null,null,null,null,null,null,null,null,null,null,null,null,null,null,null,null,null,null,null,null,null,null,null,null,null,null,null,null,null,null,null,null,null,null,null,null,null,null,null,null,null,null,null,null,null,"2025-12-06","06.12.2025"]
[null,null,null,null,null,null,null,null,null,null,null,null,null,null,null,null,null,null,null,null,null,null,null,null,null,null,null,null,null,null,null,null,null,null,null,null,null,null,null,null,null,null,null,null,null,null,null,null,null,null,null,null,"2025-12-07","07.12.2025"]
[null,null,null,null,null,null,null,null,null,null,null,null,null,null,null,null,null,null,null,null,null,null,null,null,null,null,null,null,null,null,null,null,null,null,null,null,null,null,null,null,null,null,null,null,null,null,null,null,null,null,null,null,"2025-12-08","08.12.2025"]
[null,null,null,null,null,null,null,null,null,null,null,null,null,null,null,null,null,null,null,null,null,null,null,null,null,null,null,null,null,null,null,null,null,null,null,null,null,null,null,null,null,null,null,null,null,null,null,null,null,null,null,null,"2025-12-09","09.12.2025"]
[null,null,null,null,null,null,null,null,null,null,null,null,null,null,null,null,null,null,null,null,null,null,null,null,null,null,null,null,null,null,null,null,null,null,null,null,null,null,null,null,null,null,null,null,null,null,null,null,null,null,null,null,"2025-12-10","10.12.2025"]
[null,null,null,null,null,null,null,null,null,null,null,null,null,null,null,null,null,null,null,null,null,null,null,null,null,null,null,null,null,null,null,null,null,null,null,null,null,null,null,null,null,null,null,null,null,null,null,null,null,null,null,null,"2025-12-11","11.12.2025"]
[null,null,null,null,null,null,null,null,null,null,null,null,null,null,null,null,null,null,null,null,null,null,null,null,null,null,null,null,null,null,null,null,null,null,null,null,null,null,null,null,null,null,null,null,null,null,null,null,null,null,null,null,"2025-12-12","12.12.2025"]
[null,null,null,null,null,null,null,null,null,null,null,null,null,null,null,null,null,null,null,null,null,null,null,null,null,null,null,null,null,null,null,null,null,null,null,null,null,null,null,null,null,null,null,null,null,null,null,null,null,null,null,null,"2025-12-13","13.12.2025"]
[null,null,null,null,null,null,null,null,null,null,null,null,null,null,null,null,null,null,null,null,null,null,null,null,null,null,null,null,null,null,null,null,null,null,null,null,null,null,null,null,null,null,null,null,null,null,null,null,null,null,null,null,"2025-12-14","14.12.2025"]
[null,null,null,null,null,null,null,null,null,null,null,null,null,null,null,null,null,null,null,null,null,null,null,null,null,null,null,null,null,null,null,null,null,null,null,null,null,null,null,null,null,null,null,null,null,null,null,null,null,null,null,null,"2025-12-15","15.12.2025"]
[null,null,null,null,null,null,null,null,null,null,null,null,null,null,null,null,null,null,null,null,null,null,null,null,null,null,null,null,null,null,null,null,null,null,null,null,null,null,null,null,null,null,null,null,null,null,null,null,null,null,null,null,"2025-12-16","16.12.2025"]
[null,null,null,null,null,null,null,null,null,null,null,null,null,null,null,null,null,null,null,null,null,null,null,null,null,null,null,null,null,null,null,null,null,null,null,null,null,null,null,null,null,null,null,null,null,null,null,null,null,null,null,null,"2025-12-17","17.12.2025"]
[null,null,null,null,null,null,null,null,null,null,null,null,null,null,null,null,null,null,null,null,null,null,null,null,null,null,null,null,null,null,null,null,null,null,null,null,null,null,null,null,null,null,null,null,null,null,null,null,null,null,null,null,"2025-12-18","18.12.2025"]
[null,null,null,null,null,null,null,null,null,null,null,null,null,null,null,null,null,null,null,null,null,null,null,null,null,null,null,null,null,null,null,null,null,null,null,null,null,null,null,null,null,null,null,null,null,null,null,null,null,null,null,null,"2025-12-19","19.12.2025"]
[null,null,null,null,null,null,null,null,null,null,null,null,null,null,null,null,null,null,null,null,null,null,null,null,null,null,null,null,null,null,null,null,null,null,null,null,null,null,null,null,null,null,null,null,null,null,null,null,null,null,null,null,"2025-12-20","20.12.2025"]
[null,null,null,null,null,null,null,null,null,null,null,null,null,null,null,null,null,null,null,null,null,null,null,null,null,null,null,null,null,null,null,null,null,null,null,null,null,null,null,null,null,null,null,null,null,null,null,null,null,null,null,null,"2025-12-21","21.12.2025"]
[null,null,null,null,null,null,null,null,null,null,null,null,null,null,null,null,null,null,null,null,null,null,null,null,null,null,null,null,null,null,null,null,null,null,null,null,null,null,null,null,null,null,null,null,null,null,null,null,null,null,null,null,"2025-12-22","22.12.2025"]
[null,null,null,null,null,null,null,null,null,null,null,null,null,null,null,null,null,null,null,null,null,null,null,null,null,null,null,null,null,null,null,null,null,null,null,null,null,null,null,null,null,null,null,null,null,null,null,null,null,null,null,null,"2025-12-23","23.12.2025"]
[null,null,null,null,null,null,null,null,null,null,null,null,null,null,null,null,null,null,null,null,null,null,null,null,null,null,null,null,null,null,null,null,null,null,null,null,null,null,null,null,null,null,null,null,null,null,null,null,null,null,null,null,"2025-12-24","24.12.2025"]
[null,null,null,null,null,null,null,null,null,null,null,null,null,null,null,null,null,null,null,null,null,null,null,null,null,null,null,null,null,null,null,null,null,null,null,null,null,null,null,null,null,null,null,null,null,null,null,null,null,null,null,null,"2025-12-25","25.12.2025"]
[null,null,null,null,null,null,null,null,null,null,null,null,null,null,null,null,null,null,null,null,null,null,null,null,null,null,null,null,null,null,null,null,null,null,null,null,null,null,null,null,null,null,null,null,null,null,null,null,null,null,null,null,"2025-12-26","26.12.2025"]
[null,null,null,null,null,null,null,null,null,null,null,null,null,null,null,null,null,null,null,null,null,null,null,null,null,null,null,null,null,null,null,null,null,null,null,null,null,null,null,null,null,null,null,null,null,null,null,null,null,null,null,null,"2025-12-27","27.12.2025"]
[null,null,null,null,null,null,null,null,null,null,null,null,null,null,null,null,null,null,null,null,null,null,null,null,null,null,null,null,null,null,null,null,null,null,null,null,null,null,null,null,null,null,null,null,null,null,null,null,null,null,null,null,"2025-12-28","28.12.2025"]
[null,null,null,null,null,null,null,null,null,null,null,null,null,null,null,null,null,null,null,null,null,null,null,null,null,null,null,null,null,null,null,null,null,null,null,null,null,null,null,null,null,null,null,null,null,null,null,null,null,null,null,null,"2025-12-29","29.12.2025"]
[null,null,null,null,null,null,null,null,null,null,null,null,null,null,null,null,null,null,null,null,null,null,null,null,null,null,null,null,null,null,null,null,null,null,null,null,null,null,null,null,null,null,null,null,null,null,null,null,null,null,null,null,"2025-12-30","30.12.2025"]
[null,null,null,null,null,null,null,null,null,null,null,null,null,null,null,null,null,null,null,null,null,null,null,null,null,null,null,null,null,null,null,null,null,null,null,null,null,null,null,null,null,null,null,null,null,null,null,null,null,null,null,null,"2025-12-31","31.12.2025"]
[null,null,null,null,null,null,null,null,null,null,null,null,null,null,null,null,null,null,null,null,null,null,null,null,null,null,null,null,null,null,null,null,null,null,null,null,null,null,null,null,null,null,null,null,null,null,null,null,null,null,null,null,"2026-01-01","01.01.2026"]
[null,null,null,null,null,null,null,null,null,null,null,null,null,null,null,null,null,null,null,null,null,null,null,null,null,null,null,null,null,null,null,null,null,null,null,null,null,null,null,null,null,null,null,null,null,null,null,null,null,null,null,null,"2026-01-02","02.01.2026"]
[null,null,null,null,null,null,null,null,null,null,null,null,null,null,null,null,null,null,null,null,null,null,null,null,null,null,null,null,null,null,null,null,null,null,null,null,null,null,null,null,null,null,null,null,null,null,null,null,null,null,null,null,"2026-01-03","03.01.2026"]